{"text_format":"1","workbook":"xlsx","n_sheets":6,"sheets":["Accueil","Calcul - Aide abattage","Carte admis. - Aide abattage","Versions du fichier","Menus","Log"],"not_rendered":{"charts":0,"images":6,"macros":1,"external_links":0,"defined_names":52,"comments":1,"pivot_tables":0},"unopened":[],"bounds":{"document_bytes":16777216,"sheet_cells":100000,"rows_first":2000,"rows_last":500,"rows_between":2000,"halvings":0,"cell_chars":16384,"cell_head_chars":4096},"cells_cut":0,"cells_raw":0,"read":"whole","date_system":"1900"}

{"sheet":"Accueil","index":0,"n_rows":20,"n_cols":4,"rows_kept":20,"cut":false,"hidden":false,"merged":[[13,3,13,13],[19,3,19,13],[16,3,17,13]]}
[]
[]
[]
[]
[]
[]
[]
[]
[]
[]
[]
[]
[]
[null,null,null,"Programme d’investissement en aménagement forestier (PIAF) - Volet I \nForêt publique\nAnnexe au rapport et au calcul de l'aide à l’abattage des bois feuillus de trituration sans preneur et laissés en forêt\n2022-2023            \n"]
[]
[]
[null,null,null,"L'activation du contenu de ce fichier est requise afin d'assurer l'exécution des macro-commandes qui sont nécessaires\nà son bon fonctionnement."]
[]
[]
[null,null,null,"https://support.office.com/fr-fr/article/activer-ou-d%C3%A9sactiver-les-macros-dans-les-fichiers-office-12b036fd-d140-4e74-b45e-16fed1a7e5c6"]

{"sheet":"Calcul - Aide abattage","index":1,"n_rows":136,"n_cols":101,"rows_kept":136,"cut":false,"hidden":true,"merged":[[60,0,60,5],[60,6,60,8],[2,7,2,8],[9,0,9,4],[52,0,52,8],[22,0,22,5],[35,6,35,8],[36,6,37,8],[54,0,56,5],[54,6,56,8],[57,0,57,5],[57,6,57,8],[18,0,18,5],[18,6,18,8],[12,0,12,8],[32,6,34,8],[61,0,61,8],[41,0,41,8],[42,0,42,8],[43,0,45,5],[43,6,45,8],[46,0,46,5],[46,6,46,8],[47,0,48,5],[47,6,48,8],[49,0,49,5],[49,6,49,8],[50,0,50,8],[51,0,51,8],[58,0,59,5],[58,6,59,8],[53,0,53,8],[20,0,20,8],[0,0,0,8],[39,0,39,8],[40,0,40,8],[13,6,13,8],[14,0,14,8],[5,6,5,8],[6,6,6,8],[7,6,7,8],[8,6,8,8],[3,0,3,5],[3,6,3,8],[7,0,7,5],[17,0,17,5],[10,0,10,5],[38,0,38,5],[38,6,38,8],[27,0,27,8],[28,0,28,8],[36,0,37,5],[35,0,35,5],[32,0,34,5],[29,0,29,8],[30,0,30,8],[31,0,31,8],[1,0,1,8],[4,0,4,8],[26,0,26,5],[13,0,13,5],[24,0,24,5],[25,0,25,5],[15,0,15,8],[16,0,16,8],[17,6,17,8],[19,0,19,5],[23,0,23,8],[21,0,21,5],[2,0,2,6],[5,0,5,5],[6,0,6,5],[8,0,8,5]]}
[]
["Programme d’investissement en aménagement forestier (PIAF) - Volet I \nForêt publique\nAnnexe au rapport et au calcul de l'aide à l’abattage des bois feuillus de trituration sans preneur et laissés en forêt\n2022-2023\n            \n"]
[" *** Veuillez saisir les informations dans les cellules blanches (Planification et BGAD) et jaunes (Ministère) ***",null,null,null,null,null,null,"Version 3  : 2022-10-04"]
["Contexte d'utilisation",null,null,null,null,null,"Inscrire une valeur"]
["Identification"]
["Unité d'aménagement (UA)",null,null,null,null,null,null,null,null,null,null,null,null,null,null,null,null,null,null,null,null,null,null,null,null,null,null,null,null,null,null,null,null,null,null,null,null,null,null,null,null,null,null,null,null,null,null,null,null,null,null,null,null,null,null,null,null,null,null,null,null,null,null,null,null,null,null,null,null,null,null,null,null,null,null,null,null,null,null,null,null,null,null,null,null,null,null,null,null,null,null,null,null,null,null,null,null,null,null,null,"NON"]
["Secteur d'intervention",null,null,null,null,null,null,null,null,null,null,null,null,null,null,null,null,null,null,null,null,null,null,null,null,null,null,null,null,null,null,null,null,null,null,null,null,null,null,null,null,null,null,null,null,null,null,null,null,null,null,null,null,null,null,null,null,null,null,null,null,null,null,null,null,null,null,null,null,null,null,null,null,null,null,null,null,null,null,null,null,null,null,null,null,null,null,null,null,null,null,null,null,null,null,null,null,"01151",151,0]
["Unité de compilation",null,null,null,null,null,null,null,null,null,null,null,null,null,null,null,null,null,null,null,null,null,null,null,null,null,null,null,null,null,null,null,null,null,null,null,null,null,null,null,null,null,null,null,null,null,null,null,null,null,null,null,null,null,null,null,null,null,null,null,null,null,null,null,null,null,null,null,null,null,null,null,null,null,null,null,null,null,null,null,null,null,null,null,null,null,null,null,null,null,null,null,null,null,null,null,null,"01152",152,0]
["Numéro de la prescription",null,null,null,null,null,null,null,null,null,null,null,null,null,null,null,null,null,null,null,null,null,null,null,null,null,null,null,null,null,null,null,null,null,null,null,null,null,null,null,null,null,null,null,null,null,null,null,null,null,null,null,null,null,null,null,null,null,null,null,null,null,null,null,null,null,null,null,null,null,null,null,null,null,null,null,null,null,null,null,null,null,null,null,null,null,null,null,null,null,null,null,null,null,null,null,null,"01251",153,0]
["Zone de tarification\nValeur requise pour déterminer l'admissibilité",null,null,null,null,{"$f":"IFERROR(IF(ISNA(VLOOKUP($I$10,Menus!$A$291:$A$308,1,FALSE)),\"Non_admissible\",\"Question\"),\"Question\")","v":"Non_admissible"}]
["Traitement (Code DICA)",null,null,null,null,null,null,null,"Inscrire une valeur",null,null,null,null,null,null,null,null,null,null,null,null,null,null,null,null,null,null,null,null,null,null,null,null,null,null,null,null,null,null,null,null,null,null,null,null,null,null,null,null,null,null,null,null,null,null,null,null,null,null,null,null,null,null,null,null,null,null,null,null,null,null,null,null,null,null,null,null,null,null,null,null,null,null,null,null,null,null,null,null,null,null,null,null,null,null,null,null,"02661",185,80]
["Traitement (Code RATF)",null,null,null,null,{"$f":"IFERROR(VLOOKUP($I$11,Codes_DICA_RATF_RechercheV,3,FALSE),Menus!$C$288)","v":"RATF_Utilisateur"}]
["Admissibilité",null,null,null,null,null,null,null,null,null,null,null,null,null,null,null,null,null,null,null,null,null,null,null,null,null,null,null,null,null,null,null,null,null,null,null,null,null,null,null,null,null,null,null,null,null,null,null,null,null,null,null,null,null,null,null,null,null,null,null,null,null,null,null,null,null,null,null,null,null,null,null,null,null,null,null,null,null,null,null,null,null,null,null,null,null,null,null,null,null,null,null,null,null,null,null,null,"01253",155,0]
["Le secteur d'intervention est situé dans les régions de l'Outaouais ou des Laurentides\net l'abattage des bois feuillus de trituration et laissés en forêt est autorisé par les représentants régionaux du MFFP ?",null,null,null,null,null,null,null,null,null,null,null,null,null,null,null,null,null,null,null,null,null,null,null,null,null,null,null,null,null,null,null,null,null,null,null,null,null,null,null,null,null,null,null,null,null,null,null,null,null,null,null,null,null,null,null,null,null,null,null,null,null,null,null,null,null,null,null,null,null,null,null,null,null,null,null,null,null,null,null,null,null,null,null,null,null,null,null,null,null,null,null,null,null,null,null,null,"02251",157,0]
["Formule utilisée pour le calcul",null,null,null,null,null,null,null,null,null,null,null,null,null,null,null,null,null,null,null,null,null,null,null,null,null,null,null,null,null,null,null,null,null,null,null,null,null,null,null,null,null,null,null,null,null,null,null,null,null,null,null,null,null,null,null,null,null,null,null,null,null,null,null,null,null,null,null,null,null,null,null,null,null,null,null,null,null,null,null,null,null,null,null,null,null,null,null,null,null,null,null,null,null,null,null,null,"01253",155,0]
["Aide ($/m³) = vpâte * (5,682 / vr 0,3411 + 0,332 * vpâte - 0,586)",null,null,null,null,null,null,null,null,null,null,null,null,null,null,null,null,null,null,null,null,null,null,null,null,null,null,null,null,null,null,null,null,null,null,null,null,null,null,null,null,null,null,null,null,null,null,null,null,null,null,null,null,null,null,null,null,null,null,null,null,null,null,null,null,null,null,null,null,null,null,null,null,null,null,null,null,null,null,null,null,null,null,null,null,null,null,null,null,null,null,null,null,null,null,null,null,"02251",157,0]
["Intrants pour le calcul",null,null,null,null,null,null,null,null,null,null,null,null,null,null,null,null,null,null,null,null,null,null,null,null,null,null,null,null,null,null,null,null,null,null,null,null,null,null,null,null,null,null,null,null,null,null,null,null,null,null,null,null,null,null,null,null,null,null,null,null,null,null,null,null,null,null,null,null,null,null,null,null,null,null,null,null,null,null,null,null,null,null,null,null,null,null,null,null,null,null,null,null,null,null,null,null,"02452",182,0]
["Volume net par hectare des bois feuillus de trituration abattus et laissés en forêt (vpâte)\nLe maximum payable est de 20 m³/ha",null,null,null,null,null,null,null,null,null,null,null,null,null,null,null,null,null,null,null,null,null,null,null,null,null,null,null,null,null,null,null,null,null,null,null,null,null,null,null,null,null,null,null,null,null,null,null,null,null,null,null,null,null,null,null,null,null,null,null,null,null,null,null,null,null,null,null,null,null,null,null,null,null,null,null,null,null,null,null,null,null,null,null,null,null,null,null,null,null,null,null,null,null,null,null,null,"02651",184,200]
["Volume moyen des tiges à récolter, m3/tige brut (vr)"]
["Inscrire les renseignements dans la colonne associée au contexte d'utilisation",null,null,null,null,null,"Planification","BGAD","Ministère"]
["Superficie"]
["Superficie (hectare)",null,null,null,null,null,null,null,null,null,null,null,null,null,null,null,null,null,null,null,null,null,null,null,null,null,null,null,null,null,null,null,null,null,null,null,null,null,null,null,null,null,null,null,null,null,null,null,null,null,null,null,null,null,null,null,null,null,null,null,null,null,null,null,null,null,null,null,null,null,null,null,null,null,null,null,null,null,null,null,null,null,null,null,null,null,null,null,null,null,null,null,null,null,null,null,null,"02451",181,80]
["Tous les critères sont atteints 1 (Oui ou Non)"]
["Résumé de l'aide à l’abattage des bois feuillus de trituration sans preneur et laissés en forêt",null,null,null,null,null,null,null,null,null,null,null,null,null,null,null,null,null,null,null,null,null,null,null,null,null,null,null,null,null,null,null,null,null,null,null,null,null,null,null,null,null,null,null,null,null,null,null,null,null,null,null,null,null,null,null,null,null,null,null,null,null,null,null,null,null,null,null,null,null,null,null,null,null,null,null,null,null,null,null,null,null,null,null,null,null,null,null,null,null,null,null,null,null,null,null,null,"06452",257,280]
[{"$f":"IFERROR(IF($G$18<=Menus!$B$322,\"Aide finale ($/m³)\",IF('Calcul - Aide abattage'!$G$18>Menus!$B$322,\"Aide finale ($/m³) - le maximum payable de \"&Menus!$B$322&\" m³/ha est atteint\",\"Aide finale ($/m³)\")),\"Aide finale ($/m³)\")","v":"Aide finale ($/m³)"},null,null,null,null,null,{"$f":"IFERROR(IF(EXACT(UPPER($G$14),UPPER(Menus!$A$2)),IF($G$18<=Menus!$B$322,$G$18*(Menus!$B$318/POWER($G$19,Menus!$B$319)+Menus!$B$320*$G$18-Menus!$B$321)/$G$18,Menus!$B$322*(Menus!$B$318/POWER($G$19,Menus!$B$319)+Menus!$B$320*Menus!$B$322-Menus!$B$321)/$G$18),0),0)","v":0},{"$f":"IFERROR(IF(EXACT(UPPER($G$14),UPPER(Menus!$A$2)),IF(ISBLANK($H$23)=FALSE,IF(OR(EXACT(UPPER($G$4),UPPER(Menus!$A$313)),EXACT(UPPER($G$4),UPPER(Menus!$A$314))),IF($G$18<=Menus!$B$322,$G$18*(Menus!$B$318/POWER($G$19,Menus!$B$319)+Menus!$B$320*$G$18-Menus!$B$321)/$G$18,Menus!$B$322*(Menus!$B$318/POWER($G$19,Menus!$B$319)+Menus!$B$320*Menus!$B$322-Menus!$B$321)/$G$18),0),0),0),0)","v":0},{"$f":"IFERROR(IF(EXACT(UPPER($G$14),UPPER(Menus!$A$2)),IF(EXACT(UPPER($G$4),UPPER(Menus!$A$314)),IF($G$18<=Menus!$B$322,$G$18*(Menus!$B$318/POWER($G$19,Menus!$B$319)+Menus!$B$320*$G$18-Menus!$B$321)/$G$18*$I$23,Menus!$B$322*(Menus!$B$318/POWER($G$19,Menus!$B$319)+Menus!$B$320*Menus!$B$322-Menus!$B$321)/$G$18*$I$23),0),0),0)","v":0},null,null,null,null,null,null,null,null,null,null,null,null,null,null,null,null,null,null,null,null,null,null,null,null,null,null,null,null,null,null,null,null,null,null,null,null,null,null,null,null,null,null,null,null,null,null,null,null,null,null,null,null,null,null,null,null,null,null,null,null,null,null,null,null,null,null,null,null,null,null,null,null,null,null,null,null,null,null,null,null,null,null,null,null,null,null,null,null,"07151",258,280]
["Aide finale ($/ha) - taux à inscrire à l'état d'avancement et au RATF",null,null,null,null,null,{"$f":"IFERROR(ROUND($G$25*$G$18,2),0)","v":0},{"$f":"IFERROR(ROUND($H$25*$G$18,2),0)","v":0},{"$f":"IFERROR(ROUND($I$25*$G$18,2),0)","v":0},null,null,null,null,null,null,null,null,null,null,null,null,null,null,null,null,null,null,null,null,null,null,null,null,null,null,null,null,null,null,null,null,null,null,null,null,null,null,null,null,null,null,null,null,null,null,null,null,null,null,null,null,null,null,null,null,null,null,null,null,null,null,null,null,null,null,null,null,null,null,null,null,null,null,null,null,null,null,null,null,null,null,null,null,null,null,null,null,"07152",259,280]
["Aide finale ($)",null,null,null,null,null,{"$f":"IFERROR(ROUND($G$26*$G$22,2),0)","v":0},{"$f":"IFERROR(ROUND($H$26*$H$22,2),0)","v":0},{"$f":"IFERROR(ROUND($I$26*$I$22,2),0)","v":0},null,null,null,null,null,null,null,null,null,null,null,null,null,null,null,null,null,null,null,null,null,null,null,null,null,null,null,null,null,null,null,null,null,null,null,null,null,null,null,null,null,null,null,null,null,null,null,null,null,null,null,null,null,null,null,null,null,null,null,null,null,null,null,null,null,null,null,null,null,null,null,null,null,null,null,null,null,null,null,null,null,null,null,null,null,null,null,null,"07251",260,280]
[null,null,null,null,null,null,null,null,null,null,null,null,null,null,null,null,null,null,null,null,null,null,null,null,null,null,null,null,null,null,null,null,null,null,null,null,null,null,null,null,null,null,null,null,null,null,null,null,null,null,null,null,null,null,null,null,null,null,null,null,null,null,null,null,null,null,null,null,null,null,null,null,null,null,null,null,null,null,null,null,null,null,null,null,null,null,null,null,null,null,null,null,null,null,null,null,null,"07351",261,280]
["Section réservée à l'usage de la Planification"]
["Remarques",null,null,null,null,null,null,null,null,null,null,null,null,null,null,null,null,null,null,null,null,null,null,null,null,null,null,null,null,null,null,null,null,null,null,null,null,null,null,null,null,null,null,null,null,null,null,null,null,null,null,null,null,null,null,null,null,null,null,null,null,null,null,null,null,null,null,null,null,null,null,null,null,null,null,null,null,null,null,null,null,null,null,null,null,null,null,null,null,null,null,null,null,null,null,null,null,"07451",263,280]
[null,null,null,null,null,null,null,null,null,null,null,null,null,null,null,null,null,null,null,null,null,null,null,null,null,null,null,null,null,null,null,null,null,null,null,null,null,null,null,null,null,null,null,null,null,null,null,null,null,null,null,null,null,null,null,null,null,null,null,null,null,null,null,null,null,null,null,null,null,null,null,null,null,null,null,null,null,null,null,null,null,null,null,null,null,null,null,null,null,null,null,null,null,null,null,null,null,"08251",266,200]
["J'atteste que les renseignements fournis dans ce document afin de calculer l'aide supplémentaire sont complets et conformes à la vérité, au meilleur de mes connaissances.",null,null,null,null,null,null,null,null,null,null,null,null,null,null,null,null,null,null,null,null,null,null,null,null,null,null,null,null,null,null,null,null,null,null,null,null,null,null,null,null,null,null,null,null,null,null,null,null,null,null,null,null,null,null,null,null,null,null,null,null,null,null,null,null,null,null,null,null,null,null,null,null,null,null,null,null,null,null,null,null,null,null,null,null,null,null,null,null,null,null,null,null,null,null,null,null,"08665",276,280]
[null,null,null,null,null,null,null,null,null,null,null,null,null,null,null,null,null,null,null,null,null,null,null,null,null,null,null,null,null,null,null,null,null,null,null,null,null,null,null,null,null,null,null,null,null,null,null,null,null,null,null,null,null,null,null,null,null,null,null,null,null,null,null,null,null,null,null,null,null,null,null,null,null,null,null,null,null,null,null,null,null,null,null,null,null,null,null,null,null,null,null,null,null,null,null,null,null,"08666",277,280]
[null,null,null,null,null,null,null,null,null,null,null,null,null,null,null,null,null,null,null,null,null,null,null,null,null,null,null,null,null,null,null,null,null,null,null,null,null,null,null,null,null,null,null,null,null,null,null,null,null,null,null,null,null,null,null,null,null,null,null,null,null,null,null,null,null,null,null,null,null,null,null,null,null,null,null,null,null,null,null,null,null,null,null,null,null,null,null,null,null,null,null,null,null,null,null,null,null,"08751",278,280]
[null,null,null,null,null,null,null,null,null,null,null,null,null,null,null,null,null,null,null,null,null,null,null,null,null,null,null,null,null,null,null,null,null,null,null,null,null,null,null,null,null,null,null,null,null,null,null,null,null,null,null,null,null,null,null,null,null,null,null,null,null,null,null,null,null,null,null,null,null,null,null,null,null,null,null,null,null,null,null,null,null,null,null,null,null,null,null,null,null,null,null,null,null,null,null,null,null,"08762",279,280]
["Nom et prénom de l'ingénieur forestier",null,null,null,null,null,"No de permis",null,null,null,null,null,null,null,null,null,null,null,null,null,null,null,null,null,null,null,null,null,null,null,null,null,null,null,null,null,null,null,null,null,null,null,null,null,null,null,null,null,null,null,null,null,null,null,null,null,null,null,null,null,null,null,null,null,null,null,null,null,null,null,null,null,null,null,null,null,null,null,null,null,null,null,null,null,null,null,null,null,null,null,null,null,null,null,null,null,null,"08763",280,280]
[null,null,null,null,null,null,{"$f":"TODAY()","v":"2022-10-04"},null,null,null,null,null,null,null,null,null,null,null,null,null,null,null,null,null,null,null,null,null,null,null,null,null,null,null,null,null,null,null,null,null,null,null,null,null,null,null,null,null,null,null,null,null,null,null,null,null,null,null,null,null,null,null,null,null,null,null,null,null,null,null,null,null,null,null,null,null,null,null,null,null,null,null,null,null,null,null,null,null,null,null,null,null,null,null,null,null,null,"08764",281,280]
[null,null,null,null,null,null,null,null,null,null,null,null,null,null,null,null,null,null,null,null,null,null,null,null,null,null,null,null,null,null,null,null,null,null,null,null,null,null,null,null,null,null,null,null,null,null,null,null,null,null,null,null,null,null,null,null,null,null,null,null,null,null,null,null,null,null,null,null,null,null,null,null,null,null,null,null,null,null,null,null,null,null,null,null,null,null,null,null,null,null,null,null,null,null,null,null,null,"09351",282,280]
["Signature de l'ingénieur forestier",null,null,null,null,null,"Date (AAAA-MM-JJ)",null,null,null,null,null,null,null,null,null,null,null,null,null,null,null,null,null,null,null,null,null,null,null,null,null,null,null,null,null,null,null,null,null,null,null,null,null,null,null,null,null,null,null,null,null,null,null,null,null,null,null,null,null,null,null,null,null,null,null,null,null,null,null,null,null,null,null,null,null,null,null,null,null,null,null,null,null,null,null,null,null,null,null,null,null,null,null,null,null,null,"09352",283,280]
["Section réservée à l'usage du BGAD",null,null,null,null,null,null,null,null,null,null,null,null,null,null,null,null,null,null,null,null,null,null,null,null,null,null,null,null,null,null,null,null,null,null,null,null,null,null,null,null,null,null,null,null,null,null,null,null,null,null,null,null,null,null,null,null,null,null,null,null,null,null,null,null,null,null,null,null,null,null,null,null,null,null,null,null,null,null,null,null,null,null,null,null,null,null,null,null,null,null,null,null,null,null,null,null,null,455,0]
["Remarques",null,null,null,null,null,null,null,null,null,null,null,null,null,null,null,null,null,null,null,null,null,null,null,null,null,null,null,null,null,null,null,null,null,null,null,null,null,null,null,null,null,null,null,null,null,null,null,null,null,null,null,null,null,null,null,null,null,null,null,null,null,null,null,null,null,null,null,null,null,null,null,null,null,null,null,null,null,null,null,null,null,null,null,null,null,null,null,null,null,null,null,null,null,null,null,null,null,456,0]
[null,null,null,null,null,null,null,null,null,null,null,null,null,null,null,null,null,null,null,null,null,null,null,null,null,null,null,null,null,null,null,null,null,null,null,null,null,null,null,null,null,null,null,null,null,null,null,null,null,null,null,null,null,null,null,null,null,null,null,null,null,null,null,null,null,null,null,null,null,null,null,null,null,null,null,null,null,null,null,null,null,null,null,null,null,null,null,null,null,null,null,null,null,null,null,null,null,null,457,0]
["J'atteste que les renseignements fournis dans ce document afin de calculer les taux d'investissement sont complets et conformes à la vérité, au meilleur de mes connaissances.",null,null,null,null,null,null,null,null,null,null,null,null,null,null,null,null,null,null,null,null,null,null,null,null,null,null,null,null,null,null,null,null,null,null,null,null,null,null,null,null,null,null,null,null,null,null,null,null,null,null,null,null,null,null,null,null,null,null,null,null,null,null,null,null,null,null,null,null,null,null,null,null,null,null,null,null,null,null,null,null,null,null,null,null,null,null,null,null,null,null,null,null,null,null,null,null,null,458,60]
[null,null,null,null,null,null,null,null,null,null,null,null,null,null,null,null,null,null,null,null,null,null,null,null,null,null,null,null,null,null,null,null,null,null,null,null,null,null,null,null,null,null,null,null,null,null,null,null,null,null,null,null,null,null,null,null,null,null,null,null,null,null,null,null,null,null,null,null,null,null,null,null,null,null,null,null,null,null,null,null,null,null,null,null,null,null,null,null,null,null,null,null,null,null,null,null,null,null,459,60]
[null,null,null,null,null,null,null,null,null,null,null,null,null,null,null,null,null,null,null,null,null,null,null,null,null,null,null,null,null,null,null,null,null,null,null,null,null,null,null,null,null,null,null,null,null,null,null,null,null,null,null,null,null,null,null,null,null,null,null,null,null,null,null,null,null,null,null,null,null,null,null,null,null,null,null,null,null,null,null,null,null,null,null,null,null,null,null,null,null,null,null,null,null,null,null,null,null,null,460,200]
[null,null,null,null,null,null,null,null,null,null,null,null,null,null,null,null,null,null,null,null,null,null,null,null,null,null,null,null,null,null,null,null,null,null,null,null,null,null,null,null,null,null,null,null,null,null,null,null,null,null,null,null,null,null,null,null,null,null,null,null,null,null,null,null,null,null,null,null,null,null,null,null,null,null,null,null,null,null,null,null,null,null,null,null,null,null,null,null,null,null,null,null,null,null,null,null,null,null,461,240]
["Nom et prénom de l'ingénieur forestier",null,null,null,null,null,"No de permis",null,null,null,null,null,null,null,null,null,null,null,null,null,null,null,null,null,null,null,null,null,null,null,null,null,null,null,null,null,null,null,null,null,null,null,null,null,null,null,null,null,null,null,null,null,null,null,null,null,null,null,null,null,null,null,null,null,null,null,null,null,null,null,null,null,null,null,null,null,null,null,null,null,null,null,null,null,null,null,null,null,null,null,null,null,null,null,null,null,null,null,551,0]
[null,null,null,null,null,null,{"$f":"TODAY()","v":"2022-10-04"},null,null,null,null,null,null,null,null,null,null,null,null,null,null,null,null,null,null,null,null,null,null,null,null,null,null,null,null,null,null,null,null,null,null,null,null,null,null,null,null,null,null,null,null,null,null,null,null,null,null,null,null,null,null,null,null,null,null,null,null,null,null,null,null,null,null,null,null,null,null,null,null,null,null,null,null,null,null,null,null,null,null,null,null,null,null,null,null,null,null,null,650,0]
[null,null,null,null,null,null,null,null,null,null,null,null,null,null,null,null,null,null,null,null,null,null,null,null,null,null,null,null,null,null,null,null,null,null,null,null,null,null,null,null,null,null,null,null,null,null,null,null,null,null,null,null,null,null,null,null,null,null,null,null,null,null,null,null,null,null,null,null,null,null,null,null,null,null,null,null,null,null,null,null,null,null,null,null,null,null,null,null,null,null,null,null,null,null,null,null,null,null,651,40]
["Signature de l'ingénieur forestier",null,null,null,null,null,"Date (AAAA-MM-JJ)",null,null,null,null,null,null,null,null,null,null,null,null,null,null,null,null,null,null,null,null,null,null,null,null,null,null,null,null,null,null,null,null,null,null,null,null,null,null,null,null,null,null,null,null,null,null,null,null,null,null,null,null,null,null,null,null,null,null,null,null,null,null,null,null,null,null,null,null,null,null,null,null,null,null,null,null,null,null,null,null,null,null,null,null,null,null,null,null,null,null,null,652,200]
["Section réservée à l'usage du Ministère",null,null,null,null,null,null,null,null,null,null,null,null,null,null,null,null,null,null,null,null,null,null,null,null,null,null,null,null,null,null,null,null,null,null,null,null,null,null,null,null,null,null,null,null,null,null,null,null,null,null,null,null,null,null,null,null,null,null,null,null,null,null,null,null,null,null,null,null,null,null,null,null,null,null,null,null,null,null,null,null,null,null,null,null,null,null,null,null,null,null,null,null,null,null,null,null,null,653,140]
["Remarques",null,null,null,null,null,null,null,null,null,null,null,null,null,null,null,null,null,null,null,null,null,null,null,null,null,null,null,null,null,null,null,null,null,null,null,null,null,null,null,null,null,null,null,null,null,null,null,null,null,null,null,null,null,null,null,null,null,null,null,null,null,null,null,null,null,null,null,null,null,null,null,null,null,null,null,null,null,null,null,null,null,null,null,null,null,null,null,null,null,null,null,null,null,null,null,null,null,654,200]
[null,null,null,null,null,null,null,null,null,null,null,null,null,null,null,null,null,null,null,null,null,null,null,null,null,null,null,null,null,null,null,null,null,null,null,null,null,null,null,null,null,null,null,null,null,null,null,null,null,null,null,null,null,null,null,null,null,null,null,null,null,null,null,null,null,null,null,null,null,null,null,null,null,null,null,null,null,null,null,null,null,null,null,null,null,null,null,null,null,null,null,null,null,null,null,null,null,null,655,40]
["J'atteste que les renseignements fournis dans ce document afin de calculer les taux d'investissement sont complets et conformes à la vérité, au meilleur de mes connaissances.",null,null,null,null,null,null,null,null,null,null,null,null,null,null,null,null,null,null,null,null,null,null,null,null,null,null,null,null,null,null,null,null,null,null,null,null,null,null,null,null,null,null,null,null,null,null,null,null,null,null,null,null,null,null,null,null,null,null,null,null,null,null,null,null,null,null,null,null,null,null,null,null,null,null,null,null,null,null,null,null,null,null,null,null,null,null,null,null,null,null,null,null,null,null,null,null,null,656,140]
[null,null,null,null,null,null,null,null,null,null,null,null,null,null,null,null,null,null,null,null,null,null,null,null,null,null,null,null,null,null,null,null,null,null,null,null,null,null,null,null,null,null,null,null,null,null,null,null,null,null,null,null,null,null,null,null,null,null,null,null,null,null,null,null,null,null,null,null,null,null,null,null,null,null,null,null,null,null,null,null,null,null,null,null,null,null,null,null,null,null,null,null,null,null,null,null,null,null,657,140]
[null,null,null,null,null,null,null,null,null,null,null,null,null,null,null,null,null,null,null,null,null,null,null,null,null,null,null,null,null,null,null,null,null,null,null,null,null,null,null,null,null,null,null,null,null,null,null,null,null,null,null,null,null,null,null,null,null,null,null,null,null,null,null,null,null,null,null,null,null,null,null,null,null,null,null,null,null,null,null,null,null,null,null,null,null,null,null,null,null,null,null,null,null,null,null,null,null,null,658,220]
[null,null,null,null,null,null,null,null,null,null,null,null,null,null,null,null,null,null,null,null,null,null,null,null,null,null,null,null,null,null,null,null,null,null,null,null,null,null,null,null,null,null,null,null,null,null,null,null,null,null,null,null,null,null,null,null,null,null,null,null,null,null,null,null,null,null,null,null,null,null,null,null,null,null,null,null,null,null,null,null,null,null,null,null,null,null,null,null,null,null,null,null,null,null,null,null,null,null,659,280]
["Nom et prénom de l'ingénieur forestier",null,null,null,null,null,"No de permis",null,null,null,null,null,null,null,null,null,null,null,null,null,null,null,null,null,null,null,null,null,null,null,null,null,null,null,null,null,null,null,null,null,null,null,null,null,null,null,null,null,null,null,null,null,null,null,null,null,null,null,null,null,null,null,null,null,null,null,null,null,null,null,null,null,null,null,null,null,null,null,null,null,null,null,null,null,null,null,null,null,null,null,null,null,null,null,null,null,null,null,660,160]
[null,null,null,null,null,null,{"$f":"TODAY()","v":"2022-10-04"},null,null,null,null,null,null,null,null,null,null,null,null,null,null,null,null,null,null,null,null,null,null,null,null,null,null,null,null,null,null,null,null,null,null,null,null,null,null,null,null,null,null,null,null,null,null,null,null,null,null,null,null,null,null,null,null,null,null,null,null,null,null,null,null,null,null,null,null,null,null,null,null,null,null,null,null,null,null,null,null,null,null,null,null,null,null,null,null,null,null,null,661,40]
[null,null,null,null,null,null,null,null,null,null,null,null,null,null,null,null,null,null,null,null,null,null,null,null,null,null,null,null,null,null,null,null,null,null,null,null,null,null,null,null,null,null,null,null,null,null,null,null,null,null,null,null,null,null,null,null,null,null,null,null,null,null,null,null,null,null,null,null,null,null,null,null,null,null,null,null,null,null,null,null,null,null,null,null,null,null,null,null,null,null,null,null,null,null,null,null,null,null,662,0]
["Signature de l'ingénieur forestier",null,null,null,null,null,"Date (AAAA-MM-JJ)",null,null,null,null,null,null,null,null,null,null,null,null,null,null,null,null,null,null,null,null,null,null,null,null,null,null,null,null,null,null,null,null,null,null,null,null,null,null,null,null,null,null,null,null,null,null,null,null,null,null,null,null,null,null,null,null,null,null,null,null,null,null,null,null,null,null,null,null,null,null,null,null,null,null,null,null,null,null,null,null,null,null,null,null,null,null,null,null,null,null,null,750,0]
["1 Si un ou plusieurs des critères établis à la prescription ne sont pas atteints, veuillez inscrire « Non ». À la suite du dépôt de votre rapport, le responsable du dossier à l'Unité de gestion communiquera avec vous dans les meilleurs délais pour vous indiquer, le cas échéant, le montant de l'aide qui pourrait vous être accordé pour l'exécution des travaux. ",null,null,null,null,null,null,null,null,null,null,null,null,null,null,null,null,null,null,null,null,null,null,null,null,null,null,null,null,null,null,null,null,null,null,null,null,null,null,null,null,null,null,null,null,null,null,null,null,null,null,null,null,null,null,null,null,null,null,null,null,null,null,null,null,null,null,null,null,null,null,null,null,null,null,null,null,null,null,null,null,null,null,null,null,null,null,null,null,null,null,null,null,null,null,null,null,null,754,80]
[null,null,null,null,null,null,null,null,null,null,null,null,null,null,null,null,null,null,null,null,null,null,null,null,null,null,null,null,null,null,null,null,null,null,null,null,null,null,null,null,null,null,null,null,null,null,null,null,null,null,null,null,null,null,null,null,null,null,null,null,null,null,null,null,null,null,null,null,null,null,null,null,null,null,null,null,null,null,null,null,null,null,null,null,null,null,null,null,null,null,null,null,null,null,null,null,null,null,755,60]
[null,null,null,null,null,null,null,null,null,null,null,null,null,null,null,null,null,null,null,null,null,null,null,null,null,null,null,null,null,null,null,null,null,null,null,null,null,null,null,null,null,null,null,null,null,null,null,null,null,null,null,null,null,null,null,null,null,null,null,null,null,null,null,null,null,null,null,null,null,null,null,null,null,null,null,null,null,null,null,null,null,null,null,null,null,null,null,null,null,null,null,null,null,null,null,null,null,null,756,260]
[null,null,null,null,null,null,null,null,null,null,null,null,null,null,null,null,null,null,null,null,null,null,null,null,null,null,null,null,null,null,null,null,null,null,null,null,null,null,null,null,null,null,null,null,null,null,null,null,null,null,null,null,null,null,null,null,null,null,null,null,null,null,null,null,null,null,null,null,null,null,null,null,null,null,null,null,null,null,null,null,null,null,null,null,null,null,null,null,null,null,null,null,null,null,null,null,null,null,757,260]
[null,null,null,null,null,null,null,null,null,null,null,null,null,null,null,null,null,null,null,null,null,null,null,null,null,null,null,null,null,null,null,null,null,null,null,null,null,null,null,null,null,null,null,null,null,null,null,null,null,null,null,null,null,null,null,null,null,null,null,null,null,null,null,null,null,null,null,null,null,null,null,null,null,null,null,null,null,null,null,null,null,null,null,null,null,null,null,null,null,null,null,null,null,null,null,null,null,null,758,280]
[null,null,null,null,null,null,null,null,null,null,null,null,null,null,null,null,null,null,null,null,null,null,null,null,null,null,null,null,null,null,null,null,null,null,null,null,null,null,null,null,null,null,null,null,null,null,null,null,null,null,null,null,null,null,null,null,null,null,null,null,null,null,null,null,null,null,null,null,null,null,null,null,null,null,null,null,null,null,null,null,null,null,null,null,null,null,null,null,null,null,null,null,null,null,null,null,null,null,850,0]
[null,null,null,null,null,null,null,null,null,null,null,null,null,null,null,null,null,null,null,null,null,null,null,null,null,null,null,null,null,null,null,null,null,null,null,null,null,null,null,null,null,null,null,null,null,null,null,null,null,null,null,null,null,null,null,null,null,null,null,null,null,null,null,null,null,null,null,null,null,null,null,null,null,null,null,null,null,null,null,null,null,null,null,null,null,null,null,null,null,null,null,null,null,null,null,null,null,null,851,0]
[null,null,null,null,null,null,null,null,null,null,null,null,null,null,null,null,null,null,null,null,null,null,null,null,null,null,null,null,null,null,null,null,null,null,null,null,null,null,null,null,null,null,null,null,null,null,null,null,null,null,null,null,null,null,null,null,null,null,null,null,null,null,null,null,null,null,null,null,null,null,null,null,null,null,null,null,null,null,null,null,null,null,null,null,null,null,null,null,null,null,null,null,null,null,null,null,null,null,852,0]
[null,null,null,null,null,null,null,null,null,null,null,null,null,null,null,null,null,null,null,null,null,null,null,null,null,null,null,null,null,null,null,null,null,null,null,null,null,null,null,null,null,null,null,null,null,null,null,null,null,null,null,null,null,null,null,null,null,null,null,null,null,null,null,null,null,null,null,null,null,null,null,null,null,null,null,null,null,null,null,null,null,null,null,null,null,null,null,null,null,null,null,null,null,null,null,null,null,null,853,0]
[null,null,null,null,null,null,null,null,null,null,null,null,null,null,null,null,null,null,null,null,null,null,null,null,null,null,null,null,null,null,null,null,null,null,null,null,null,null,null,null,null,null,null,null,null,null,null,null,null,null,null,null,null,null,null,null,null,null,null,null,null,null,null,null,null,null,null,null,null,null,null,null,null,null,null,null,null,null,null,null,null,null,null,null,null,null,null,null,null,null,null,null,null,null,null,null,null,null,854,0]
[null,null,null,null,null,null,null,null,null,null,null,null,null,null,null,null,null,null,null,null,null,null,null,null,null,null,null,null,null,null,null,null,null,null,null,null,null,null,null,null,null,null,null,null,null,null,null,null,null,null,null,null,null,null,null,null,null,null,null,null,null,null,null,null,null,null,null,null,null,null,null,null,null,null,null,null,null,null,null,null,null,null,null,null,null,null,null,null,null,null,null,null,null,null,null,null,null,null,855,0]
[null,null,null,null,null,null,null,null,null,null,null,null,null,null,null,null,null,null,null,null,null,null,null,null,null,null,null,null,null,null,null,null,null,null,null,null,null,null,null,null,null,null,null,null,null,null,null,null,null,null,null,null,null,null,null,null,null,null,null,null,null,null,null,null,null,null,null,null,null,null,null,null,null,null,null,null,null,null,null,null,null,null,null,null,null,null,null,null,null,null,null,null,null,null,null,null,null,null,856,60]
[null,null,null,null,null,null,null,null,null,null,null,null,null,null,null,null,null,null,null,null,null,null,null,null,null,null,null,null,null,null,null,null,null,null,null,null,null,null,null,null,null,null,null,null,null,null,null,null,null,null,null,null,null,null,null,null,null,null,null,null,null,null,null,null,null,null,null,null,null,null,null,null,null,null,null,null,null,null,null,null,null,null,null,null,null,null,null,null,null,null,null,null,null,null,null,null,null,null,857,80]
[null,null,null,null,null,null,null,null,null,null,null,null,null,null,null,null,null,null,null,null,null,null,null,null,null,null,null,null,null,null,null,null,null,null,null,null,null,null,null,null,null,null,null,null,null,null,null,null,null,null,null,null,null,null,null,null,null,null,null,null,null,null,null,null,null,null,null,null,null,null,null,null,null,null,null,null,null,null,null,null,null,null,null,null,null,null,null,null,null,null,null,null,null,null,null,null,null,null,858,100]
[null,null,null,null,null,null,null,null,null,null,null,null,null,null,null,null,null,null,null,null,null,null,null,null,null,null,null,null,null,null,null,null,null,null,null,null,null,null,null,null,null,null,null,null,null,null,null,null,null,null,null,null,null,null,null,null,null,null,null,null,null,null,null,null,null,null,null,null,null,null,null,null,null,null,null,null,null,null,null,null,null,null,null,null,null,null,null,null,null,null,null,null,null,null,null,null,null,null,859,180]
[null,null,null,null,null,null,null,null,null,null,null,null,null,null,null,null,null,null,null,null,null,null,null,null,null,null,null,null,null,null,null,null,null,null,null,null,null,null,null,null,null,null,null,null,null,null,null,null,null,null,null,null,null,null,null,null,null,null,null,null,null,null,null,null,null,null,null,null,null,null,null,null,null,null,null,null,null,null,null,null,null,null,null,null,null,null,null,null,null,null,null,null,null,null,null,null,null,null,860,260]
[null,null,null,null,null,null,null,null,null,null,null,null,null,null,null,null,null,null,null,null,null,null,null,null,null,null,null,null,null,null,null,null,null,null,null,null,null,null,null,null,null,null,null,null,null,null,null,null,null,null,null,null,null,null,null,null,null,null,null,null,null,null,null,null,null,null,null,null,null,null,null,null,null,null,null,null,null,null,null,null,null,null,null,null,null,null,null,null,null,null,null,null,null,null,null,null,null,null,861,240]
[null,null,null,null,null,null,null,null,null,null,null,null,null,null,null,null,null,null,null,null,null,null,null,null,null,null,null,null,null,null,null,null,null,null,null,null,null,null,null,null,null,null,null,null,null,null,null,null,null,null,null,null,null,null,null,null,null,null,null,null,null,null,null,null,null,null,null,null,null,null,null,null,null,null,null,null,null,null,null,null,null,null,null,null,null,null,null,null,null,null,null,null,null,null,null,null,null,null,862,280]
[null,null,null,null,null,null,null,null,null,null,null,null,null,null,null,null,null,null,null,null,null,null,null,null,null,null,null,null,null,null,null,null,null,null,null,null,null,null,null,null,null,null,null,null,null,null,null,null,null,null,null,null,null,null,null,null,null,null,null,null,null,null,null,null,null,null,null,null,null,null,null,null,null,null,null,null,null,null,null,null,null,null,null,null,null,null,null,null,null,null,null,null,null,null,null,null,null,null,863,280]
[null,null,null,null,null,null,null,null,null,null,null,null,null,null,null,null,null,null,null,null,null,null,null,null,null,null,null,null,null,null,null,null,null,null,null,null,null,null,null,null,null,null,null,null,null,null,null,null,null,null,null,null,null,null,null,null,null,null,null,null,null,null,null,null,null,null,null,null,null,null,null,null,null,null,null,null,null,null,null,null,null,null,null,null,null,null,null,null,null,null,null,null,null,null,null,null,null,null,864,280]
[null,null,null,null,null,null,null,null,null,null,null,null,null,null,null,null,null,null,null,null,null,null,null,null,null,null,null,null,null,null,null,null,null,null,null,null,null,null,null,null,null,null,null,null,null,null,null,null,null,null,null,null,null,null,null,null,null,null,null,null,null,null,null,null,null,null,null,null,null,null,null,null,null,null,null,null,null,null,null,null,null,null,null,null,null,null,null,null,null,null,null,null,null,null,null,null,null,null,865,280]
[null,null,null,null,null,null,null,null,null,null,null,null,null,null,null,null,null,null,null,null,null,null,null,null,null,null,null,null,null,null,null,null,null,null,null,null,null,null,null,null,null,null,null,null,null,null,null,null,null,null,null,null,null,null,null,null,null,null,null,null,null,null,null,null,null,null,null,null,null,null,null,null,null,null,null,null,null,null,null,null,null,null,null,null,null,null,null,null,null,null,null,null,null,null,null,null,null,null,866,280]
[null,null,null,null,null,null,null,null,null,null,null,null,null,null,null,null,null,null,null,null,null,null,null,null,null,null,null,null,null,null,null,null,null,null,null,null,null,null,null,null,null,null,null,null,null,null,null,null,null,null,null,null,null,null,null,null,null,null,null,null,null,null,null,null,null,null,null,null,null,null,null,null,null,null,null,null,null,null,null,null,null,null,null,null,null,null,null,null,null,null,null,null,null,null,null,null,null,null,867,280]
[null,null,null,null,null,null,null,null,null,null,null,null,null,null,null,null,null,null,null,null,null,null,null,null,null,null,null,null,null,null,null,null,null,null,null,null,null,null,null,null,null,null,null,null,null,null,null,null,null,null,null,null,null,null,null,null,null,null,null,null,null,null,null,null,null,null,null,null,null,null,null,null,null,null,null,null,null,null,null,null,null,null,null,null,null,null,null,null,null,null,null,null,null,null,null,null,null,null,868,280]
[null,null,null,null,null,null,null,null,null,null,null,null,null,null,null,null,null,null,null,null,null,null,null,null,null,null,null,null,null,null,null,null,null,null,null,null,null,null,null,null,null,null,null,null,null,null,null,null,null,null,null,null,null,null,null,null,null,null,null,null,null,null,null,null,null,null,null,null,null,null,null,null,null,null,null,null,null,null,null,null,null,null,null,null,null,null,null,null,null,null,null,null,null,null,null,null,null,null,869,280]
[null,null,null,null,null,null,null,null,null,null,null,null,null,null,null,null,null,null,null,null,null,null,null,null,null,null,null,null,null,null,null,null,null,null,null,null,null,null,null,null,null,null,null,null,null,null,null,null,null,null,null,null,null,null,null,null,null,null,null,null,null,null,null,null,null,null,null,null,null,null,null,null,null,null,null,null,null,null,null,null,null,null,null,null,null,null,null,null,null,null,null,null,null,null,null,null,null,null,870,280]
[null,null,null,null,null,null,null,null,null,null,null,null,null,null,null,null,null,null,null,null,null,null,null,null,null,null,null,null,null,null,null,null,null,null,null,null,null,null,null,null,null,null,null,null,null,null,null,null,null,null,null,null,null,null,null,null,null,null,null,null,null,null,null,null,null,null,null,null,null,null,null,null,null,null,null,null,null,null,null,null,null,null,null,null,null,null,null,null,null,null,null,null,null,null,null,null,null,null,871,280]
[null,null,null,null,null,null,null,null,null,null,null,null,null,null,null,null,null,null,null,null,null,null,null,null,null,null,null,null,null,null,null,null,null,null,null,null,null,null,null,null,null,null,null,null,null,null,null,null,null,null,null,null,null,null,null,null,null,null,null,null,null,null,null,null,null,null,null,null,null,null,null,null,null,null,null,null,null,null,null,null,null,null,null,null,null,null,null,null,null,null,null,null,null,null,null,null,null,null,872,280]
[null,null,null,null,null,null,null,null,null,null,null,null,null,null,null,null,null,null,null,null,null,null,null,null,null,null,null,null,null,null,null,null,null,null,null,null,null,null,null,null,null,null,null,null,null,null,null,null,null,null,null,null,null,null,null,null,null,null,null,null,null,null,null,null,null,null,null,null,null,null,null,null,null,null,null,null,null,null,null,null,null,null,null,null,null,null,null,null,null,null,null,null,null,null,null,null,null,null,873,280]
[null,null,null,null,null,null,null,null,null,null,null,null,null,null,null,null,null,null,null,null,null,null,null,null,null,null,null,null,null,null,null,null,null,null,null,null,null,null,null,null,null,null,null,null,null,null,null,null,null,null,null,null,null,null,null,null,null,null,null,null,null,null,null,null,null,null,null,null,null,null,null,null,null,null,null,null,null,null,null,null,null,null,null,null,null,null,null,null,null,null,null,null,null,null,null,null,null,null,874,280]
[null,null,null,null,null,null,null,null,null,null,null,null,null,null,null,null,null,null,null,null,null,null,null,null,null,null,null,null,null,null,null,null,null,null,null,null,null,null,null,null,null,null,null,null,null,null,null,null,null,null,null,null,null,null,null,null,null,null,null,null,null,null,null,null,null,null,null,null,null,null,null,null,null,null,null,null,null,null,null,null,null,null,null,null,null,null,null,null,null,null,null,null,null,null,null,null,null,null,875,280]
[null,null,null,null,null,null,null,null,null,null,null,null,null,null,null,null,null,null,null,null,null,null,null,null,null,null,null,null,null,null,null,null,null,null,null,null,null,null,null,null,null,null,null,null,null,null,null,null,null,null,null,null,null,null,null,null,null,null,null,null,null,null,null,null,null,null,null,null,null,null,null,null,null,null,null,null,null,null,null,null,null,null,null,null,null,null,null,null,null,null,null,null,null,null,null,null,null,null,876,280]
[null,null,null,null,null,null,null,null,null,null,null,null,null,null,null,null,null,null,null,null,null,null,null,null,null,null,null,null,null,null,null,null,null,null,null,null,null,null,null,null,null,null,null,null,null,null,null,null,null,null,null,null,null,null,null,null,null,null,null,null,null,null,null,null,null,null,null,null,null,null,null,null,null,null,null,null,null,null,null,null,null,null,null,null,null,null,null,null,null,null,null,null,null,null,null,null,null,null,877,280]
[null,null,null,null,null,null,null,null,null,null,null,null,null,null,null,null,null,null,null,null,null,null,null,null,null,null,null,null,null,null,null,null,null,null,null,null,null,null,null,null,null,null,null,null,null,null,null,null,null,null,null,null,null,null,null,null,null,null,null,null,null,null,null,null,null,null,null,null,null,null,null,null,null,null,null,null,null,null,null,null,null,null,null,null,null,null,null,null,null,null,null,null,null,null,null,null,null,null,878,280]
[null,null,null,null,null,null,null,null,null,null,null,null,null,null,null,null,null,null,null,null,null,null,null,null,null,null,null,null,null,null,null,null,null,null,null,null,null,null,null,null,null,null,null,null,null,null,null,null,null,null,null,null,null,null,null,null,null,null,null,null,null,null,null,null,null,null,null,null,null,null,null,null,null,null,null,null,null,null,null,null,null,null,null,null,null,null,null,null,null,null,null,null,null,null,null,null,null,null,879,280]
[null,null,null,null,null,null,null,null,null,null,null,null,null,null,null,null,null,null,null,null,null,null,null,null,null,null,null,null,null,null,null,null,null,null,null,null,null,null,null,null,null,null,null,null,null,null,null,null,null,null,null,null,null,null,null,null,null,null,null,null,null,null,null,null,null,null,null,null,null,null,null,null,null,null,null,null,null,null,null,null,null,null,null,null,null,null,null,null,null,null,null,null,null,null,null,null,null,null,880,280]
[null,null,null,null,null,null,null,null,null,null,null,null,null,null,null,null,null,null,null,null,null,null,null,null,null,null,null,null,null,null,null,null,null,null,null,null,null,null,null,null,null,null,null,null,null,null,null,null,null,null,null,null,null,null,null,null,null,null,null,null,null,null,null,null,null,null,null,null,null,null,null,null,null,null,null,null,null,null,null,null,null,null,null,null,null,null,null,null,null,null,null,null,null,null,null,null,null,null,881,280]
[null,null,null,null,null,null,null,null,null,null,null,null,null,null,null,null,null,null,null,null,null,null,null,null,null,null,null,null,null,null,null,null,null,null,null,null,null,null,null,null,null,null,null,null,null,null,null,null,null,null,null,null,null,null,null,null,null,null,null,null,null,null,null,null,null,null,null,null,null,null,null,null,null,null,null,null,null,null,null,null,null,null,null,null,null,null,null,null,null,null,null,null,null,null,null,null,null,null,882,280]
[null,null,null,null,null,null,null,null,null,null,null,null,null,null,null,null,null,null,null,null,null,null,null,null,null,null,null,null,null,null,null,null,null,null,null,null,null,null,null,null,null,null,null,null,null,null,null,null,null,null,null,null,null,null,null,null,null,null,null,null,null,null,null,null,null,null,null,null,null,null,null,null,null,null,null,null,null,null,null,null,null,null,null,null,null,null,null,null,null,null,null,null,null,null,null,null,null,null,883,280]
[null,null,null,null,null,null,null,null,null,null,null,null,null,null,null,null,null,null,null,null,null,null,null,null,null,null,null,null,null,null,null,null,null,null,null,null,null,null,null,null,null,null,null,null,null,null,null,null,null,null,null,null,null,null,null,null,null,null,null,null,null,null,null,null,null,null,null,null,null,null,null,null,null,null,null,null,null,null,null,null,null,null,null,null,null,null,null,null,null,null,null,null,null,null,null,null,null,null,884,280]
[null,null,null,null,null,null,null,null,null,null,null,null,null,null,null,null,null,null,null,null,null,null,null,null,null,null,null,null,null,null,null,null,null,null,null,null,null,null,null,null,null,null,null,null,null,null,null,null,null,null,null,null,null,null,null,null,null,null,null,null,null,null,null,null,null,null,null,null,null,null,null,null,null,null,null,null,null,null,null,null,null,null,null,null,null,null,null,null,null,null,null,null,null,null,null,null,null,null,885,280]
[null,null,null,null,null,null,null,null,null,null,null,null,null,null,null,null,null,null,null,null,null,null,null,null,null,null,null,null,null,null,null,null,null,null,null,null,null,null,null,null,null,null,null,null,null,null,null,null,null,null,null,null,null,null,null,null,null,null,null,null,null,null,null,null,null,null,null,null,null,null,null,null,null,null,null,null,null,null,null,null,null,null,null,null,null,null,null,null,null,null,null,null,null,null,null,null,null,null,886,280]
[null,null,null,null,null,null,null,null,null,null,null,null,null,null,null,null,null,null,null,null,null,null,null,null,null,null,null,null,null,null,null,null,null,null,null,null,null,null,null,null,null,null,null,null,null,null,null,null,null,null,null,null,null,null,null,null,null,null,null,null,null,null,null,null,null,null,null,null,null,null,null,null,null,null,null,null,null,null,null,null,null,null,null,null,null,null,null,null,null,null,null,null,null,null,null,null,null,null,887,280]
[null,null,null,null,null,null,null,null,null,null,null,null,null,null,null,null,null,null,null,null,null,null,null,null,null,null,null,null,null,null,null,null,null,null,null,null,null,null,null,null,null,null,null,null,null,null,null,null,null,null,null,null,null,null,null,null,null,null,null,null,null,null,null,null,null,null,null,null,null,null,null,null,null,null,null,null,null,null,null,null,null,null,null,null,null,null,null,null,null,null,null,null,null,null,null,null,null,null,888,280]
[null,null,null,null,null,null,null,null,null,null,null,null,null,null,null,null,null,null,null,null,null,null,null,null,null,null,null,null,null,null,null,null,null,null,null,null,null,null,null,null,null,null,null,null,null,null,null,null,null,null,null,null,null,null,null,null,null,null,null,null,null,null,null,null,null,null,null,null,null,null,null,null,null,null,null,null,null,null,null,null,null,null,null,null,null,null,null,null,null,null,null,null,null,null,null,null,null,null,889,240]
[null,null,null,null,null,null,null,null,null,null,null,null,null,null,null,null,null,null,null,null,null,null,null,null,null,null,null,null,null,null,null,null,null,null,null,null,null,null,null,null,null,null,null,null,null,null,null,null,null,null,null,null,null,null,null,null,null,null,null,null,null,null,null,null,null,null,null,null,null,null,null,null,null,null,null,null,null,null,null,null,null,null,null,null,null,null,null,null,null,null,null,null,null,null,null,null,null,null,890,280]
[null,null,null,null,null,null,null,null,null,null,null,null,null,null,null,null,null,null,null,null,null,null,null,null,null,null,null,null,null,null,null,null,null,null,null,null,null,null,null,null,null,null,null,null,null,null,null,null,null,null,null,null,null,null,null,null,null,null,null,null,null,null,null,null,null,null,null,null,null,null,null,null,null,null,null,null,null,null,null,null,null,null,null,null,null,null,null,null,null,null,null,null,null,null,null,null,null,null,891,280]
[null,null,null,null,null,null,null,null,null,null,null,null,null,null,null,null,null,null,null,null,null,null,null,null,null,null,null,null,null,null,null,null,null,null,null,null,null,null,null,null,null,null,null,null,null,null,null,null,null,null,null,null,null,null,null,null,null,null,null,null,null,null,null,null,null,null,null,null,null,null,null,null,null,null,null,null,null,null,null,null,null,null,null,null,null,null,null,null,null,null,null,null,null,null,null,null,null,null,892,280]
[null,null,null,null,null,null,null,null,null,null,null,null,null,null,null,null,null,null,null,null,null,null,null,null,null,null,null,null,null,null,null,null,null,null,null,null,null,null,null,null,null,null,null,null,null,null,null,null,null,null,null,null,null,null,null,null,null,null,null,null,null,null,null,null,null,null,null,null,null,null,null,null,null,null,null,null,null,null,null,null,null,null,null,null,null,null,null,null,null,null,null,null,null,null,null,null,null,null,950,280]
[null,null,null,null,null,null,null,null,null,null,null,null,null,null,null,null,null,null,null,null,null,null,null,null,null,null,null,null,null,null,null,null,null,null,null,null,null,null,null,null,null,null,null,null,null,null,null,null,null,null,null,null,null,null,null,null,null,null,null,null,null,null,null,null,null,null,null,null,null,null,null,null,null,null,null,null,null,null,null,null,null,null,null,null,null,null,null,null,null,null,null,null,null,null,null,null,null,null,951,280]
[null,null,null,null,null,null,null,null,null,null,null,null,null,null,null,null,null,null,null,null,null,null,null,null,null,null,null,null,null,null,null,null,null,null,null,null,null,null,null,null,null,null,null,null,null,null,null,null,null,null,null,null,null,null,null,null,null,null,null,null,null,null,null,null,null,null,null,null,null,null,null,null,null,null,null,null,null,null,null,null,null,null,null,null,null,null,null,null,null,null,null,null,null,null,null,null,null,null,952,280]
[null,null,null,null,null,null,null,null,null,null,null,null,null,null,null,null,null,null,null,null,null,null,null,null,null,null,null,null,null,null,null,null,null,null,null,null,null,null,null,null,null,null,null,null,null,null,null,null,null,null,null,null,null,null,null,null,null,null,null,null,null,null,null,null,null,null,null,null,null,null,null,null,null,null,null,null,null,null,null,null,null,null,null,null,null,null,null,null,null,null,null,null,null,null,null,null,null,null,953,280]
[null,null,null,null,null,null,null,null,null,null,null,null,null,null,null,null,null,null,null,null,null,null,null,null,null,null,null,null,null,null,null,null,null,null,null,null,null,null,null,null,null,null,null,null,null,null,null,null,null,null,null,null,null,null,null,null,null,null,null,null,null,null,null,null,null,null,null,null,null,null,null,null,null,null,null,null,null,null,null,null,null,null,null,null,null,null,null,null,null,null,null,null,null,null,null,null,null,null,954,280]
[null,null,null,null,null,null,null,null,null,null,null,null,null,null,null,null,null,null,null,null,null,null,null,null,null,null,null,null,null,null,null,null,null,null,null,null,null,null,null,null,null,null,null,null,null,null,null,null,null,null,null,null,null,null,null,null,null,null,null,null,null,null,null,null,null,null,null,null,null,null,null,null,null,null,null,null,null,null,null,null,null,null,null,null,null,null,null,null,null,null,null,null,null,null,null,null,null,null,955,280]
[null,null,null,null,null,null,null,null,null,null,null,null,null,null,null,null,null,null,null,null,null,null,null,null,null,null,null,null,null,null,null,null,null,null,null,null,null,null,null,null,null,null,null,null,null,null,null,null,null,null,null,null,null,null,null,null,null,null,null,null,null,null,null,null,null,null,null,null,null,null,null,null,null,null,null,null,null,null,null,null,null,null,null,null,null,null,null,null,null,null,null,null,null,null,null,null,null,null,956,280]
[null,null,null,null,null,null,null,null,null,null,null,null,null,null,null,null,null,null,null,null,null,null,null,null,null,null,null,null,null,null,null,null,null,null,null,null,null,null,null,null,null,null,null,null,null,null,null,null,null,null,null,null,null,null,null,null,null,null,null,null,null,null,null,null,null,null,null,null,null,null,null,null,null,null,null,null,null,null,null,null,null,null,null,null,null,null,null,null,null,null,null,null,null,null,null,null,null,null,957,280]
[null,null,null,null,null,null,null,null,null,null,null,null,null,null,null,null,null,null,null,null,null,null,null,null,null,null,null,null,null,null,null,null,null,null,null,null,null,null,null,null,null,null,null,null,null,null,null,null,null,null,null,null,null,null,null,null,null,null,null,null,null,null,null,null,null,null,null,null,null,null,null,null,null,null,null,null,null,null,null,null,null,null,null,null,null,null,null,null,null,null,null,null,null,null,null,null,null,null,960,280]
[null,null,null,null,null,null,null,null,null,null,null,null,null,null,null,null,null,null,null,null,null,null,null,null,null,null,null,null,null,null,null,null,null,null,null,null,null,null,null,null,null,null,null,null,null,null,null,null,null,null,null,null,null,null,null,null,null,null,null,null,null,null,null,null,null,null,null,null,null,null,null,null,null,null,null,null,null,null,null,null,null,null,null,null,null,null,null,null,null,null,null,null,null,null,null,null,null,null,961,280]
[null,null,null,null,null,null,null,null,null,null,null,null,null,null,null,null,null,null,null,null,null,null,null,null,null,null,null,null,null,null,null,null,null,null,null,null,null,null,null,null,null,null,null,null,null,null,null,null,null,null,null,null,null,null,null,null,null,null,null,null,null,null,null,null,null,null,null,null,null,null,null,null,null,null,null,null,null,null,null,null,null,null,null,null,null,null,null,null,null,null,null,null,null,null,null,null,null,null,962,280]
[null,null,null,null,null,null,null,null,null,null,null,null,null,null,null,null,null,null,null,null,null,null,null,null,null,null,null,null,null,null,null,null,null,null,null,null,null,null,null,null,null,null,null,null,null,null,null,null,null,null,null,null,null,null,null,null,null,null,null,null,null,null,null,null,null,null,null,null,null,null,null,null,null,null,null,null,null,null,null,null,null,null,null,null,null,null,null,null,null,null,null,null,null,null,null,null,null,null,963,280]
[null,null,null,null,null,null,null,null,null,null,null,null,null,null,null,null,null,null,null,null,null,null,null,null,null,null,null,null,null,null,null,null,null,null,null,null,null,null,null,null,null,null,null,null,null,null,null,null,null,null,null,null,null,null,null,null,null,null,null,null,null,null,null,null,null,null,null,null,null,null,null,null,null,null,null,null,null,null,null,null,null,null,null,null,null,null,null,null,null,null,null,null,null,null,null,null,null,null,964,280]
[null,null,null,null,null,null,null,null,null,null,null,null,null,null,null,null,null,null,null,null,null,null,null,null,null,null,null,null,null,null,null,null,null,null,null,null,null,null,null,null,null,null,null,null,null,null,null,null,null,null,null,null,null,null,null,null,null,null,null,null,null,null,null,null,null,null,null,null,null,null,null,null,null,null,null,null,null,null,null,null,null,null,null,null,null,null,null,null,null,null,null,null,null,null,null,null,null,null,965,280]
[null,null,null,null,null,null,null,null,null,null,null,null,null,null,null,null,null,null,null,null,null,null,null,null,null,null,null,null,null,null,null,null,null,null,null,null,null,null,null,null,null,null,null,null,null,null,null,null,null,null,null,null,null,null,null,null,null,null,null,null,null,null,null,null,null,null,null,null,null,null,null,null,null,null,null,null,null,null,null,null,null,null,null,null,null,null,null,null,null,null,null,null,null,null,null,null,null,null,966,280]
[null,null,null,null,null,null,null,null,null,null,null,null,null,null,null,null,null,null,null,null,null,null,null,null,null,null,null,null,null,null,null,null,null,null,null,null,null,null,null,null,null,null,null,null,null,null,null,null,null,null,null,null,null,null,null,null,null,null,null,null,null,null,null,null,null,null,null,null,null,null,null,null,null,null,null,null,null,null,null,null,null,null,null,null,null,null,null,null,null,null,null,null,null,null,null,null,null,null,967,280]
[null,null,null,null,null,null,null,null,null,null,null,null,null,null,null,null,null,null,null,null,null,null,null,null,null,null,null,null,null,null,null,null,null,null,null,null,null,null,null,null,null,null,null,null,null,null,null,null,null,null,null,null,null,null,null,null,null,null,null,null,null,null,null,null,null,null,null,null,null,null,null,null,null,null,null,null,null,null,null,null,null,null,null,null,null,null,null,null,null,null,null,null,null,null,null,null,null,null,970,280]
[null,null,null,null,null,null,null,null,null,null,null,null,null,null,null,null,null,null,null,null,null,null,null,null,null,null,null,null,null,null,null,null,null,null,null,null,null,null,null,null,null,null,null,null,null,null,null,null,null,null,null,null,null,null,null,null,null,null,null,null,null,null,null,null,null,null,null,null,null,null,null,null,null,null,null,null,null,null,null,null,null,null,null,null,null,null,null,null,null,null,null,null,null,null,null,null,null,null,980,280]
[null,null,null,null,null,null,null,null,null,null,null,null,null,null,null,null,null,null,null,null,null,null,null,null,null,null,null,null,null,null,null,null,null,null,null,null,null,null,null,null,null,null,null,null,null,null,null,null,null,null,null,null,null,null,null,null,null,null,null,null,null,null,null,null,null,null,null,null,null,null,null,null,null,null,null,null,null,null,null,null,null,null,null,null,null,null,null,null,null,null,null,null,null,null,null,null,null,null,981,280]
[null,null,null,null,null,null,null,null,null,null,null,null,null,null,null,null,null,null,null,null,null,null,null,null,null,null,null,null,null,null,null,null,null,null,null,null,null,null,null,null,null,null,null,null,null,null,null,null,null,null,null,null,null,null,null,null,null,null,null,null,null,null,null,null,null,null,null,null,null,null,null,null,null,null,null,null,null,null,null,null,null,null,null,null,null,null,null,null,null,null,null,null,null,null,null,null,null,null,982,280]
[null,null,null,null,null,null,null,null,null,null,null,null,null,null,null,null,null,null,null,null,null,null,null,null,null,null,null,null,null,null,null,null,null,null,null,null,null,null,null,null,null,null,null,null,null,null,null,null,null,null,null,null,null,null,null,null,null,null,null,null,null,null,null,null,null,null,null,null,null,null,null,null,null,null,null,null,null,null,null,null,null,null,null,null,null,null,null,null,null,null,null,null,null,null,null,null,null,null,983,280]
[null,null,null,null,null,null,null,null,null,null,null,null,null,null,null,null,null,null,null,null,null,null,null,null,null,null,null,null,null,null,null,null,null,null,null,null,null,null,null,null,null,null,null,null,null,null,null,null,null,null,null,null,null,null,null,null,null,null,null,null,null,null,null,null,null,null,null,null,null,null,null,null,null,null,null,null,null,null,null,null,null,null,null,null,null,null,null,null,null,null,null,null,null,null,null,null,null,null,984,280]
[null,null,null,null,null,null,null,null,null,null,null,null,null,null,null,null,null,null,null,null,null,null,null,null,null,null,null,null,null,null,null,null,null,null,null,null,null,null,null,null,null,null,null,null,null,null,null,null,null,null,null,null,null,null,null,null,null,null,null,null,null,null,null,null,null,null,null,null,null,null,null,null,null,null,null,null,null,null,null,null,null,null,null,null,null,null,null,null,null,null,null,null,null,null,null,null,null,null,985,280]
[null,null,null,null,null,null,null,null,null,null,null,null,null,null,null,null,null,null,null,null,null,null,null,null,null,null,null,null,null,null,null,null,null,null,null,null,null,null,null,null,null,null,null,null,null,null,null,null,null,null,null,null,null,null,null,null,null,null,null,null,null,null,null,null,null,null,null,null,null,null,null,null,null,null,null,null,null,null,null,null,null,null,null,null,null,null,null,null,null,null,null,null,null,null,null,null,null,null,986,280]
[null,null,null,null,null,null,null,null,null,null,null,null,null,null,null,null,null,null,null,null,null,null,null,null,null,null,null,null,null,null,null,null,null,null,null,null,null,null,null,null,null,null,null,null,null,null,null,null,null,null,null,null,null,null,null,null,null,null,null,null,null,null,null,null,null,null,null,null,null,null,null,null,null,null,null,null,null,null,null,null,null,null,null,null,null,null,null,null,null,null,null,null,null,null,null,null,null,null,987,280]
[null,null,null,null,null,null,null,null,null,null,null,null,null,null,null,null,null,null,null,null,null,null,null,null,null,null,null,null,null,null,null,null,null,null,null,null,null,null,null,null,null,null,null,null,null,null,null,null,null,null,null,null,null,null,null,null,null,null,null,null,null,null,null,null,null,null,null,null,null,null,null,null,null,null,null,null,null,null,null,null,null,null,null,null,null,null,null,null,null,null,null,null,null,null,null,null,null,null,990,280]
[null,null,null,null,null,null,null,null,null,null,null,null,null,null,null,null,null,null,null,null,null,null,null,null,null,null,null,null,null,null,null,null,null,null,null,null,null,null,null,null,null,null,null,null,null,null,null,null,null,null,null,null,null,null,null,null,null,null,null,null,null,null,null,null,null,null,null,null,null,null,null,null,null,null,null,null,null,null,null,null,null,null,null,null,null,null,null,null,null,null,null,null,null,null,null,null,null,null,995,0]

{"sheet":"Carte admis. - Aide abattage","index":2,"n_rows":0,"n_cols":0,"rows_kept":0,"cut":false,"hidden":true,"merged":[]}

{"sheet":"Versions du fichier","index":3,"n_rows":13,"n_cols":33,"rows_kept":13,"cut":false,"hidden":true,"merged":[[0,0,0,16],[0,19,0,24]]}
["Programme d’investissement en aménagement forestier (PIAF) - Volet I \nForêt publique\nSuivi des versions du fichier de l'annexe au rapport et au calcul de l'aide à l’abattage des bois feuillus de trituration sans preneur\net laissés en forêt pour l'exercice 2022-2023",null,null,null,null,null,null,null,null,null,null,null,null,null,null,null,null,null,null,"Version 3  : 2022-10-04",null,null,null,null,null,null,null,null,null,null,null,null,{"$f":"TODAY()","v":"2022-10-04"}]
[]
["Version 1","Nom du fichier :","Calcul_aide_PIAF_Volet_I_Aide_abattage_2022-2023_2022-05-04.xlsm"]
[{"$f":"A3","v":"Version 1"},"Date de mise en ligne :","2022-05-04 ou dans les jours suivants."]
[{"$f":"A4","v":"Version 1"},"Remarques :","• Version initiale proposée pour la période de consultation"]
[{"$f":"A5","v":"Version 1"}]
["Version 2","Nom du fichier :","Calcul_aide_PIAF_Volet_I_Aide_abattage_2022-2023_2022-07-05.xlsm"]
["Version 1","Date de mise en ligne :","2022-07-05 ou dans les jours suivants."]
["Version 1","Remarques :","• Version finale pour la saison 2022-2023"]
[{"$f":"A9","v":"Version 1"}]
["Version 3","Nom du fichier :","Calcul_aide_PIAF_Volet_I_Aide_abattage_2022-2023_2022-07-05.xlsm"]
["Version 1","Date de mise en ligne :","2022-10-04 ou dans les jours suivants."]
["Version 1","Remarques :","• Version pour publication avec ajustement final"]

{"sheet":"Menus","index":4,"n_rows":326,"n_cols":4,"rows_kept":326,"cut":false,"hidden":true,"merged":[]}
["Question"]
["Oui"]
["Non"]
["Non admisible"]
[]
["UA AABFTSPLF"]
["06151"]
["06452"]
["06471"]
["07151"]
["07152"]
["07251"]
["07351"]
["07352"]
["07451"]
[]
["Codes_Dica : OK 2022-04-06 n36"]
["CJB-EMR"]
["CJP"]
["CJP-AM"]
["CJPG"]
["CJPG-AM"]
["CJT-EMR"]
["CPI_CP-ENS_B"]
["CPI_CP-ENS_U"]
["CPI_CP-SEC_B"]
["CPI_CP-SEC_U"]
["CPI_RL-1INR_ENS"]
["CPI_RL-1INR_MUL"]
["CPI_RL-1INR_SEC"]
["CPI_RL-2I_ENS"]
["CPI_RL-2I_MUL"]
["CPI_RL-2I_SEC"]
["CPI_RL-3I_ENS"]
["CPI_RL-3I_MUL"]
["CPI_RL-3I_SEC"]
["CPI_RL-MUL"]
["CPI_RL-PR"]
["CPR_BA"]
["CPR_T"]
["CPR_U-ENS"]
["CPR_U-PR"]
["CPR_U-SEC"]
["EC_MIXTE-BAS"]
["EC_MIXTE-HAUT"]
["EC_MIXTE-NEUTRE"]
["EC_SEL-BAS"]
["EC_SEL-HAUT"]
["EC_SEL-NEUTRE"]
["EJ_P-CLAS"]
["EJ_P-INI"]
["EJ_PG-CLAS"]
["EJ_PG-INI"]
["Inscrire une valeur"]
[]
["Codes_RATF : OK 2022-04-06 n114"]
["1INRENSMFM"]
["1INRENSMSF"]
["1INRENSOFM"]
["1INRENSOSF"]
["1INRMULMFM"]
["1INRMULMSF"]
["1INRMULOFM"]
["1INRMULOSF"]
["1INRSECMFM"]
["1INRSECMSF"]
["1INRSECOFM"]
["1INRSECOSF"]
["2IMULMFM"]
["2IMULMSF"]
["2IMULOFM"]
["2IMULOSF"]
["3IMULMFM"]
["3IMULMSF"]
["3IMULOFM"]
["3IMULOSF"]
["CJBM"]
["CJBMO"]
["CJPAMM"]
["CJPAMO"]
["CJPGAMM"]
["CJPGAMO"]
["CJPGM"]
["CJPGO"]
["CJPM"]
["CJPO"]
["CJTM"]
["CJTMO"]
["CPIENSBMSF"]
["CPIENSBOSF"]
["CPIL2ENOFM"]
["CPIL2ENOSF"]
["CPIL2SEOFM"]
["CPIL2SEOSF"]
["CPIL3ENOFM"]
["CPIL3ENOSF"]
["CPIL3SEOFM"]
["CPIL3SEOSF"]
["CPILMULOFM"]
["CPILMULOSF"]
["CPIRL2ENFM"]
["CPIRL2ENSF"]
["CPIRL2SEFM"]
["CPIRL2SESF"]
["CPIRL3ENFM"]
["CPIRL3ENSF"]
["CPIRL3SEFM"]
["CPIRL3SESF"]
["CPIRLMULFM"]
["CPIRLMULSF"]
["CPIRLPRFM"]
["CPIRLPROFM"]
["CPIRLPROSF"]
["CPIRLPRSF"]
["CPISECBMSF"]
["CPISECBOSF"]
["CPIUENSFM"]
["CPIUENSOFM"]
["CPIUENSOSF"]
["CPIUENSSF"]
["CPIUSECFM"]
["CPIUSECOFM"]
["CPIUSECOSF"]
["CPIUSECSF"]
["CPRBAMFM"]
["CPRBAMSF"]
["CPRBAOFM"]
["CPRBAOSF"]
["CPRTMFM"]
["CPRTMSF"]
["CPRTOFM"]
["CPRTOSF"]
["CPRUENSFM"]
["CPRUENSOFM"]
["CPRUENSOSF"]
["CPRUENSSF"]
["CPRUPRFM"]
["CPRUPROFM"]
["CPRUPROSF"]
["CPRUPRSF"]
["CPRUSECFM"]
["CPRUSECOFM"]
["CPRUSECOSF"]
["CPRUSECSF"]
["ECMIXBASF2"]
["ECMIXBASFM"]
["ECMIXBASSF"]
["ECMIXHASF2"]
["ECMIXHAUFM"]
["ECMIXHAUSF"]
["ECMIXNESF2"]
["ECMIXNEUFM"]
["ECMIXNEUSF"]
["ECSELBASF2"]
["ECSELBASFM"]
["ECSELBASSF"]
["ECSELHASF2"]
["ECSELHAUFM"]
["ECSELHAUSF"]
["ECSELNESF2"]
["ECSELNEUFM"]
["ECSELNEUSF"]
["EJPCLASM"]
["EJPCLASO"]
["EJPGCLASM"]
["EJPGCLASO"]
["EJPGINIM"]
["EJPGINIO"]
["EJPINIM"]
["EJPINIO"]
["Inscrire une valeur"]
[]
["Codes_DICA_RATF_RechercheV : OK 2021-04-07 n114","Codes_RATF","Indirect","Description"]
["CJB-EMR","CJBM","RATF_CJB_EMR","Coupe de jardinage par bandes avec éclaircie dans la matrice résiduelle, Martelage"]
["CJB-EMR","CJBMO","RATF_CJB_EMR","Coupe de jardinage par bandes avec éclaircie dans la matrice résiduelle, Opérateur"]
["CJP-AM","CJPAMM","RATF_CJP_AM","Coupe de jardinage par pieds d'arbre, amélioraton de la qualité, Martelage"]
["CJP-AM","CJPAMO","RATF_CJP_AM","Coupe de jardinage par pieds d'arbre, amélioration de la qualité, Opérateur"]
["CJPG-AM","CJPGAMM","RATF_CJPG_AM","Coupe de jardinage par pieds d'arbre et groupes d'arbres, amélioration de la qualité, Martelage"]
["CJPG-AM","CJPGAMO","RATF_CJPG_AM","Coupe de jardinage par pieds d'arbre et groupes d'arbres, amélioration de la qualité, Opérateur"]
["CJPG","CJPGM","RATF_CJPG","Coupe de jardinage par pieds d'arbre et groupes d'arbres, Martelage"]
["CJPG","CJPGO","RATF_CJPG","Coupe de jardinage par pieds d'arbre et groupes d'arbres, Opérateur"]
["CJP","CJPM","RATF_CJP","Coupe de jardinage par pieds d'arbre, Martelage"]
["CJP","CJPO","RATF_CJP","Coupe de jardinage par pieds d'arbre, Opérateur"]
["CJT-EMR","CJTM","RATF_CJT_EMR","Coupe de jardinage par trouées avec éclaircie dans la matrice résiduelle, Martelage"]
["CJT-EMR","CJTMO","RATF_CJT_EMR","Coupe de jardinage par trouées avec éclaircie dans la matrice résiduelle, Opérateur"]
["CPI_CP-ENS_B","CPIENSBMSF","RATF_CPI_CP_ENS_B","Coupe progressive irrégulière à couvert permanent par bandes, coupe d'ensemencement, Martelage, type de peuplement SEPM, feuillus intolérants et mixte résineux"]
["CPI_CP-ENS_B","CPIENSBOSF","RATF_CPI_CP_ENS_B","Coupe progressive irrégulière à couvert permanent par bandes, coupe d'ensemencement, Opérateur, type de peuplement SEPM, feuillus intolérants et mixte résineux"]
["CPI_CP-ENS_U","CPIUENSFM","RATF_CPI_CP_ENS_U","Coupe progressive irrégulière à couvert permanent, coupe d'ensemencement, patron d'intervention uniforme, Martelage, type de peuplement feuillus tolérants, autres résineux et mixte feuillus"]
["CPI_CP-ENS_U","CPIUENSOFM","RATF_CPI_CP_ENS_U","Coupe progressive irrégulière à couvert permanent, coupe d'ensemencement, patron d'intervention uniforme, Opérateur,  type de peuplement feuillus tolérants, autres résineux et mixte feuillus"]
["CPI_CP-ENS_U","CPIUENSOSF","RATF_CPI_CP_ENS_U","Coupe progressive irrégulière à couvert permanent, coupe d'ensemencement, patron d'intervention uniforme, Opérateur, type de peuplement SEPM, feuillus intolérants et mixte résineux"]
["CPI_CP-ENS_U","CPIUENSSF","RATF_CPI_CP_ENS_U","Coupe progressive irrégulière à couvert permanent, coupe d'ensemencement, patron d'intervention uniforme, Martelage, type de peuplement SEPM, feuillus intolérants et mixte résineux"]
["CPI_CP-SEC_B","CPISECBMSF","RATF_CPI_CP_SEC_B","Coupe progressive irrégulière à couvert permanent par bandes, coupe secondaire, Martelage, type de peuplement SEPM, feuillus intolérants et mixte résineux"]
["CPI_CP-SEC_B","CPISECBOSF","RATF_CPI_CP_SEC_B","Coupe progressive irrégulière à couvert permanent par bandes, coupe secondaire, Opérateur, type de peuplement SEPM, feuillus intolérants et mixte résineux"]
["CPI_CP-SEC_U","CPIUSECFM","RATF_CPI_CP_SEC_U","Coupe progressive irrégulière à couvert permanent, coupe secondaire, patron d'intervention uniforme, Martelage, type de peuplement feuillus tolérants, autres résineux et mixte feuillus"]
["CPI_CP-SEC_U","CPIUSECOFM","RATF_CPI_CP_SEC_U","Coupe progressive irrégulière à couvert permanent, coupe secondaire, patron d'intervention uniforme, Opérateur, type de peuplement feuillus tolérants, autres résineux et mixte feuillus"]
["CPI_CP-SEC_U","CPIUSECOSF","RATF_CPI_CP_SEC_U","Coupe progressive irrégulière à couvert permanent, coupe secondaire, patron d'intervention uniforme, Opérateur, type de peuplement SEPM, feuillus intolérants et mixte résineux"]
["CPI_CP-SEC_U","CPIUSECSF","RATF_CPI_CP_SEC_U","Coupe progressive irrégulière à couvert permanent, coupe secondaire, patron d'intervention uniforme, Martelage, type de peuplement SEPM, feuillus intolérants et mixte résineux"]
["CPI_RL-1INR_ENS","1INRENSMFM","RATF_CPI_RL_1INR_ENS","Coupe progressive irrégulière à régénération lente en 1 intervention et abandon du volume résiduel, phase d'ensemencement, Martelage, type de peuplement feuillus tolérants, autres résineux et mixte feuillus"]
["CPI_RL-1INR_ENS","1INRENSMSF","RATF_CPI_RL_1INR_ENS","Coupe progressive irrégulière à régénération lente en 1 intervention et abandon du volume résiduel, phase d'ensemencement, Martelage, type de peuplement SEPM, feuillus intolérants et mixte résineux"]
["CPI_RL-1INR_ENS","1INRENSOFM","RATF_CPI_RL_1INR_ENS","Coupe progressive irrégulière à régénération lente en 1 intervention et abandon du volume résiduel, phase d'ensemencement, Opérateur, type de peuplement feuillus tolérants, autres résineux et mixte feuillus"]
["CPI_RL-1INR_ENS","1INRENSOSF","RATF_CPI_RL_1INR_ENS","Coupe progressive irrégulière à régénération lente en 1 intervention et abandon du volume résiduel, phase d'ensemencement, Opérateur, type de peuplement SEPM, feuillus intolérants et mixte résineux"]
["CPI_RL-1INR_MUL","1INRMULMFM","RATF_CPI_RL_1INR_MUL","Coupe progressive irrégulière à régénération lente en 1 intervention et abandon du volume résiduel, Multiples phases, Martelage, type de peuplement feuillus tolérants, autres résineux et mixte feuillus"]
["CPI_RL-1INR_MUL","1INRMULMSF","RATF_CPI_RL_1INR_MUL","Coupe progressive irrégulière à régénération lente en 1 intervention et abandon du volume résiduel, Multiples phases, Martelage, type de peuplement SEPM, feuillus intolérants et mixte résineux"]
["CPI_RL-1INR_MUL","1INRMULOFM","RATF_CPI_RL_1INR_MUL","Coupe progressive irrégulière à régénération lente en 1 intervention et abandon du volume résiduel, Multiples phases, Opérateur, type de peuplement feuillus tolérants, autres résineux et mixte feuillus"]
["CPI_RL-1INR_MUL","1INRMULOSF","RATF_CPI_RL_1INR_MUL","Coupe progressive irrégulière à régénération lente en 1 intervention et abandon du volume résiduel, Multiples phases, Opérateur, type de peuplement SEPM, feuillus intolérants et mixte résineux"]
["CPI_RL-1INR_SEC","1INRSECMFM","RATF_CPI_RL_1INR_SEC","Coupe progressive irrégulière à régénération lente en 1 intervention et abandon du volume résiduel, phase secondaire, Martelage, type de peuplement feuillus tolérants, autres résineux et mixte feuillus"]
["CPI_RL-1INR_SEC","1INRSECMSF","RATF_CPI_RL_1INR_SEC","Coupe progressive irrégulière à régénération lente en 1 intervention et abandon du volume résiduel, phase secondaire, Martelage, type de peuplement SEPM, feuillus intolérants et mixte résineux"]
["CPI_RL-1INR_SEC","1INRSECOFM","RATF_CPI_RL_1INR_SEC","Coupe progressive irrégulière à régénération lente en 1 intervention et abandon du volume résiduel, phase secondaire, Opérateur, type de peuplement feuillus tolérants, autres résineux et mixte feuillus"]
["CPI_RL-1INR_SEC","1INRSECOSF","RATF_CPI_RL_1INR_SEC","Coupe progressive irrégulière à régénération lente en 1 intervention et abandon du volume résiduel, phase secondaire, Opérateur, type de peuplement SEPM, feuillus intolérants et mixte résineux"]
["CPI_RL-2I_ENS","CPIL2ENOFM","RATF_CPI_RL_2I_ENS","Coupe progressive irrégulière à régénération lente, 2 interventions, coupe d'ensemencement, Opérateur, type de peuplement feuillus tolérants, autres résineux et mixte feuillus"]
["CPI_RL-2I_ENS","CPIL2ENOSF","RATF_CPI_RL_2I_ENS","Coupe progressive irrégulière à régénération lente, 2 interventions, coupe d'ensemencement, Opérateur, type de peuplement SEPM, feuillus intolérants et mixte résineux"]
["CPI_RL-2I_ENS","CPIRL2ENFM","RATF_CPI_RL_2I_ENS","Coupe progressive irrégulière à régénération lente, 2 interventions, coupe d'ensemencement, Martelage, type de peuplement feuillus tolérants, autres résineux et mixte feuillus"]
["CPI_RL-2I_ENS","CPIRL2ENSF","RATF_CPI_RL_2I_ENS","Coupe progressive irrégulière à régénération lente, 2 interventions, coupe d'ensemencement, Martelage, type de peuplement SEPM, feuillus intolérants et mixte résineux"]
["CPI_RL-2I_MUL","2IMULMFM","RATF_CPI_RL_2I_MUL","Coupe progressive irrégulière à régénération lente en 2 interventions et abandon du volume résiduel, Multiples phases, Martelage, type de peuplement feuillus tolérants, autres résineux et mixte feuillus"]
["CPI_RL-2I_MUL","2IMULMSF","RATF_CPI_RL_2I_MUL","Coupe progressive irrégulière à régénération lente en 2 interventions et abandon du volume résiduel, Multiples phases, Martelage, type de peuplement SEPM, feuillus intolérants et mixte résineux"]
["CPI_RL-2I_MUL","2IMULOFM","RATF_CPI_RL_2I_MUL","Coupe progressive irrégulière à régénération lente en 2 interventions et abandon du volume résiduel, Multiples phases, Opérateur, type de peuplement feuillus tolérants, autres résineux et mixte feuillus"]
["CPI_RL-2I_MUL","2IMULOSF","RATF_CPI_RL_2I_MUL","Coupe progressive irrégulière à régénération lente en 2 interventions et abandon du volume résiduel, Multiples phases, Opérateur, type de peuplement SEPM, feuillus intolérants et mixte résineux"]
["CPI_RL-2I_SEC","CPIL2SEOFM","RATF_CPI_RL_2I_SEC","Coupe progressive irrégulière à régénération lente, 2 interventions, coupe secondaire, Opérateur, type de peuplement feuillus tolérants, autres résineux, mixte feuillus"]
["CPI_RL-2I_SEC","CPIL2SEOSF","RATF_CPI_RL_2I_SEC","Coupe progressive irrégulière à régénération lente, 2 interventions, coupe secondaire, Opérateur, type de peuplement SEPM, feuillus intolérants, mixte résineux"]
["CPI_RL-2I_SEC","CPIRL2SEFM","RATF_CPI_RL_2I_SEC","Coupe progressive irrégulière à régénération lente, 2 interventions, coupe secondaire, Martelage, type de peuplement feuillus tolérants, autres résineux, mixte feuillus"]
["CPI_RL-2I_SEC","CPIRL2SESF","RATF_CPI_RL_2I_SEC","Coupe progressive irrégulière à régénération lente, 2 interventions, coupe secondaire, Martelage, type de peuplement SEPM, feuillus intolérants, mixte résineux"]
["CPI_RL-3I_ENS","CPIL3ENOFM","RATF_CPI_RL_3I_ENS","Coupe progressive irrégulière à régénération lente, 3 interventions, coupe d'ensemencement, Opérateur, type de peuplement feuillus tolérants, autres résineux et mixte feuillus"]
["CPI_RL-3I_ENS","CPIL3ENOSF","RATF_CPI_RL_3I_ENS","Coupe progressive irrégulière à régénération lente, 3 interventions, coupe d'ensemencement, Opérateur, type de peuplement SEPM, feuillus intolérants et mixte résineux"]
["CPI_RL-3I_ENS","CPIRL3ENFM","RATF_CPI_RL_3I_ENS","Coupe progressive irrégulière à régénération lente, 3 interventions, coupe d'ensemencement, Martelage, type de peuplement feuillus tolérants, autres résineux et mixte feuillus"]
["CPI_RL-3I_ENS","CPIRL3ENSF","RATF_CPI_RL_3I_ENS","Coupe progressive irrégulière à régénération lente, 3 interventions, coupe d'ensemencement, Martelage, type de peuplement SEPM, feuillus intolérants et mixte résineux"]
["CPI_RL-3I_MUL","3IMULMFM","RATF_CPI_RL_3I_MUL","Coupe progressive irrégulière à régénération lente en 3 interventions et abandon du volume résiduel, Multiples phases, Martelage, type de peuplement feuillus tolérants, autres résineux et mixte feuillus"]
["CPI_RL-3I_MUL","3IMULMSF","RATF_CPI_RL_3I_MUL","Coupe progressive irrégulière à régénération lente en 3 interventions et abandon du volume résiduel, Multiples phases, Martelage, type de peuplement SEPM, feuillus intolérants et mixte résineux"]
["CPI_RL-3I_MUL","3IMULOFM","RATF_CPI_RL_3I_MUL","Coupe progressive irrégulière à régénération lente en 3 interventions et abandon du volume résiduel, Multiples phases, Opérateur, type de peuplement feuillus tolérants, autres résineux et mixte feuillus"]
["CPI_RL-3I_MUL","3IMULOSF","RATF_CPI_RL_3I_MUL","Coupe progressive irrégulière à régénération lente en 3 interventions et abandon du volume résiduel, Multiples phases, Opérateur, type de peuplement SEPM, feuillus intolérants et mixte résineux"]
["CPI_RL-3I_SEC","CPIL3SEOFM","RATF_CPI_RL_3I_SEC","Coupe progressive irrégulière à régénération lente, 3 interventions, coupe secondaire, Opérateur, type de peuplement feuillus tolérants, autres résineux, mixte feuillus"]
["CPI_RL-3I_SEC","CPIL3SEOSF","RATF_CPI_RL_3I_SEC","Coupe progressive irrégulière à régénération lente, 3 interventions, coupe secondaire, Opérateur, type de peuplement SEPM, feuillus intolérants, mixte résineux"]
["CPI_RL-3I_SEC","CPIRL3SEFM","RATF_CPI_RL_3I_SEC","Coupe progressive irrégulière à régénération lente, 3 interventions, coupe secondaire, Martelage, type de peuplement feuillus tolérants, autres résineux, mixte feuillus"]
["CPI_RL-3I_SEC","CPIRL3SESF","RATF_CPI_RL_3I_SEC","Coupe progressive irrégulière à régénération lente, 3 interventions, coupe secondaire, Martelage, type de peuplement SEPM, feuillus intolérants, mixte résineux"]
["CPI_RL-MUL","CPILMULOFM","RATF_CPI_RL_MUL","Coupe progressive irrégulière à régénération lente, coupe multiples phases, Opérateur, type de peuplement feuillus tolérants, autres résineux et mixte feuillus"]
["CPI_RL-MUL","CPILMULOSF","RATF_CPI_RL_MUL","Coupe progressive irrégulière à régénération lente, coupe multiples phases, Opérateur, type de peuplement SEPM, feuillus intolérants, mixte feuillus"]
["CPI_RL-MUL","CPIRLMULFM","RATF_CPI_RL_MUL","Coupe progressive irrégulière à régénération lente, coupe multiples phases, Martelage, type de peuplement feuillus tolérants, autres résineux et mixte feuillus"]
["CPI_RL-MUL","CPIRLMULSF","RATF_CPI_RL_MUL","Coupe progressive irrégulière à régénération lente, coupe multiples phases, Martelage, type de peuplement SEPM, feuillus intolérants, mixte feuillus"]
["CPI_RL-PR","CPIRLPRFM","RATF_CPI_RL_PR","Coupe progressive irrégulière à régénération lente, coupe préparatoire, Martelage, type de peuplement feuillus tolérants, autres résineux et mixte feuillus"]
["CPI_RL-PR","CPIRLPROFM","RATF_CPI_RL_PR","Coupe progressive irrégulière à régénération lente, coupe préparatoire, Opérateur, type de peuplement feuillus tolérants, autres résineux et mixte feuillus"]
["CPI_RL-PR","CPIRLPROSF","RATF_CPI_RL_PR","Coupe progressive irrégulière à régénération lente, coupe préparatoire, Opérateur, type de peuplement SEPM, feuillus intolérants et mixte résineux"]
["CPI_RL-PR","CPIRLPRSF","RATF_CPI_RL_PR","Coupe progressive irrégulière à régénération lente, coupe préparatoire, Martelage, type de peuplement SEPM, feuillus intolérants et mixte résineux"]
["CPR_BA","CPRBAMFM","RATF_CPR_BA","Coupe progressive régulière par bande, Martelage, type de peuplement feuillus tolérants, autres résineux et mixte feuillus"]
["CPR_BA","CPRBAMSF","RATF_CPR_BA","Coupe progressive régulière par bande, Martelage, type de peuplement SEPM, feuillus intolérants et mixte résineux"]
["CPR_BA","CPRBAOFM","RATF_CPR_BA","Coupe progressive régulière par bande, Opérateur, type de peuplement feuillus tolérants, autres résineux et mixte feuillus"]
["CPR_BA","CPRBAOSF","RATF_CPR_BA","Coupe progressive régulière par bande, Opérateur, type de peuplement SEPM, feuillus intolérants et mixte résineux"]
["CPR_T","CPRTMFM","RATF_CPR_T","Coupe progressive régulière par troués, Martelage, type de peuplement feuillus tolérants, autres résineux et mixte feuillus"]
["CPR_T","CPRTMSF","RATF_CPR_T","Coupe progressive régulière par trouées, Martelage, type de peuplement SEPM, feuillus intolérants et mixte résineux"]
["CPR_T","CPRTOFM","RATF_CPR_T","Coupe progressive régulière par trouées, Opérateur, type de peuplement feuillus tolérants, autres résineux et mixte feuillus"]
["CPR_T","CPRTOSF","RATF_CPR_T","Coupe progressive régulière par trouées, Opérateur, type de peuplement SEPM, feuillus intolérants et mixte résineux"]
["CPR_U-ENS","CPRUENSFM","RATF_CPR_U_ENS","Coupe progressive régulière uniforme, coupe d'ensemencement, Martelage, type de peuplement feuillus tolérants, autres résineux et mixte feuillus"]
["CPR_U-ENS","CPRUENSOFM","RATF_CPR_U_ENS","Coupe progressive régulière uniforme, coupe d'ensemencement, Opérateur, type de peuplement feuillus tolérants, autres résineux et mixte feuillus"]
["CPR_U-ENS","CPRUENSOSF","RATF_CPR_U_ENS","Coupe progressive régulière uniforme, coupe d'ensemencement, Opérateur, type de peuplement SEPM, feuillus intolérants et mixte résineux"]
["CPR_U-ENS","CPRUENSSF","RATF_CPR_U_ENS","Coupe progressive régulière uniforme, coupe d'ensemencement, Martelage, type de peuplement SEPM, feuillus intolérants et mixte résineux"]
["CPR_U-PR","CPRUPRFM","RATF_CPR_U_PR","Coupe progressive régulière uniforme, coupe préparatoire, Martelage, type de peuplement feuillus tolérants, autres résineux et mixte feuillus"]
["CPR_U-PR","CPRUPROFM","RATF_CPR_U_PR","Coupe progressive régulière uniforme, coupe préparatoire, Opérateur, peuplement feuillus tolérants, autres résineux et mixte feuillus"]
["CPR_U-PR","CPRUPROSF","RATF_CPR_U_PR","Coupe progressive régulière uniforme, Coupe préparatoire, Opérateur, peuplement SEPM, feuillus intolérants et mixte résineux"]
["CPR_U-PR","CPRUPRSF","RATF_CPR_U_PR","Coupe progressive régulière uniforme, coupe préparatoire, Martelage, type de peuplement SEPM, feuillus intolérants et mixte résineux"]
["CPR_U-SEC","CPRUSECFM","RATF_CPR_U_SEC","Coupe progressive régulière uniforme, coupe secondaire, Martelage, type de peuplement feuillus tolérants, autres résineux et mixte feuillus"]
["CPR_U-SEC","CPRUSECOFM","RATF_CPR_U_SEC","Coupe progressive régulière uniforme, coupe secondaire, Opérateur, type de peuplement feuillus tolérants, autres résineux et mixte feuillus"]
["CPR_U-SEC","CPRUSECOSF","RATF_CPR_U_SEC","Coupe progressive régulière uniforme, coupe secondaire, Opérateur, type de peuplement SEPM, feuillus intolérants et mixte résineux"]
["CPR_U-SEC","CPRUSECSF","RATF_CPR_U_SEC","Coupe progressive régulière uniforme, coupe secondaire, Martelage, type de peuplement SEPM, feuillus intolérants et mixte résineux"]
["EC_MIXTE-BAS","ECMIXBASF2","RATF_EC_MIXTE_BAS","Deuxième éclaircie commerciale mixte par le bas, peuplement SEPM, feuillus intolérants  et mixte à tendance résineuse"]
["EC_MIXTE-BAS","ECMIXBASFM","RATF_EC_MIXTE_BAS","Éclaircie commerciale mixte par le bas, peuplement feuillus tolérants, autres résineux et mixte feuillus"]
["EC_MIXTE-BAS","ECMIXBASSF","RATF_EC_MIXTE_BAS","Éclaircie commerciale mixte par le bas, peuplement SEPM, feuillus intolérants  et mixte à tendance résineuse"]
["EC_MIXTE-HAUT","ECMIXHASF2","RATF_EC_MIXTE_HAUT","Deuxième éclaircie commerciale mixte par le haut, peuplement SEPM, feuillus intolérants  et mixte à tendance résineuse"]
["EC_MIXTE-HAUT","ECMIXHAUFM","RATF_EC_MIXTE_HAUT","Éclaircie commerciale mixte par le haut, peuplement feuillus tolérants, autres résineux et mixte feuillus"]
["EC_MIXTE-HAUT","ECMIXHAUSF","RATF_EC_MIXTE_HAUT","Éclaircie commerciale mixte par le haut, peuplement SEPM, feuillus intolérants  et mixte à tendance résineuse"]
["EC_MIXTE-NEUTRE","ECMIXNESF2","RATF_EC_MIXTE_NEUTRE","Deuxième éclaircie commerciale mixte neutre, peuplement SEPM, feuillus intolérants  et mixte à tendance résineuse"]
["EC_MIXTE-NEUTRE","ECMIXNEUFM","RATF_EC_MIXTE_NEUTRE","Éclaircie commerciale patron d'intervention mixte neutre, peuplement feuillus tolérants, autres résineux et mixte feuillus"]
["EC_MIXTE-NEUTRE","ECMIXNEUSF","RATF_EC_MIXTE_NEUTRE","Éclaircie commerciale mixte neutre, peuplement SEPM, feuillus intolérants  et mixte à tendance résineuse"]
["EC_SEL-BAS","ECSELBASF2","RATF_EC_SEL_BAS","Deuxième éclaircie commerciale sélective par le bas, peuplement SEPM et mixte à tendance résineuse et feuillus intolérants"]
["EC_SEL-BAS","ECSELBASFM","RATF_EC_SEL_BAS","Éclaircie commerciale sélective par le bas, peuplement feuillus tolérants, autres résineux et mixte feuillus"]
["EC_SEL-BAS","ECSELBASSF","RATF_EC_SEL_BAS","Éclaircie commerciale sélective par le bas, peuplement SEPM et mixte à tendance résineuse et feuillus intolérants"]
["EC_SEL-HAUT","ECSELHASF2","RATF_EC_SEL_HAUT","Deuxième éclaircie commerciale sélective par le haut, peuplement SEPM et mixte à tendance résineuse et feuillus intolérants"]
["EC_SEL-HAUT","ECSELHAUFM","RATF_EC_SEL_HAUT","Éclaircie commerciale sélective par le haut, peuplement feuillus tolérants, autres résineux et mixte feuillus"]
["EC_SEL-HAUT","ECSELHAUSF","RATF_EC_SEL_HAUT","Éclaircie commerciale sélective par le haut, peuplement SEPM et mixte à tendance résineuse et feuillus intolérants"]
["EC_SEL-NEUTRE","ECSELNESF2","RATF_EC_SEL_NEUTRE","Deuxième éclaircie commerciale sélective neutre, peuplement SEPM et mixte à tendance résineuse et feuillus intolérants"]
["EC_SEL-NEUTRE","ECSELNEUFM","RATF_EC_SEL_NEUTRE","Éclaircie commerciale sélective neutre, peuplement feuillus tolérants, autres résineux et mixte feuillus"]
["EC_SEL-NEUTRE","ECSELNEUSF","RATF_EC_SEL_NEUTRE","Éclaircie commerciale sélective neutre, peuplement SEPM et mixte à tendance résineuse et feuillus intolérants"]
["EJ_P-CLAS","EJPCLASM","RATF_EJ_P_CLAS","Éclaircie jardinatoire par pied d'arbre classique ou finale, Martelage"]
["EJ_P-CLAS","EJPCLASO","RATF_EJ_P_CLAS","Éclaircie jardinatoire par pied d'arbre classique ou finale, Opérateur"]
["EJ_PG-CLAS","EJPGCLASM","RATF_EJ_PG_CLAS","Éclaircie jardinatoire par pied d'arbre et groupes d'arbres, classique ou finale, Martelage"]
["EJ_PG-CLAS","EJPGCLASO","RATF_EJ_PG_CLAS","Éclaircie jardinatoire par pied d'arbre et groupes d'arbres, classique ou finale, Opérateur"]
["EJ_PG-INI","EJPGINIM","RATF_EJ_PG_INI","Éclaircie jardinatoire par pied d'arbre et groupes d'arbres initiale, Martelage"]
["EJ_PG-INI","EJPGINIO","RATF_EJ_PG_INI","Éclaircie jardinatoire par pied d'arbre et groupes d'arbres initiale, Opérateur"]
["EJ_P-INI","EJPINIM","RATF_EJ_P_INI","Éclaircie jardinatoire par pied d'arbre initiale, Martelage"]
["EJ_P-INI","EJPINIO","RATF_EJ_P_INI","Éclaircie jardinatoire par pied d'arbre initiale, Opérateur"]
["Inscrire une valeur",null,"RATF_Utilisateur"]
[]
["Zone de tarification AABFTSPLF"]
[648]
[649]
["656"]
[657]
[658]
[659]
[660]
[661]
[662]
[750]
[751]
[752]
[753]
[754]
[755]
[756]
[757]
[758]
["Inscrire une valeur"]
[]
["Contexte"]
["Planification"]
["BGAD"]
["Ministère"]
["Inscrire une valeur"]
[]
["Formule AABFTSPLF"]
["Constante 1",5.6820000000000004]
["Constante 2",0.34110000000000001]
["Constante 3",0.33200000000000002]
["Constante 4",0.58599999999999997]
["Seuil maximal",20]
[]
["Formule"]
[{"$f":"\"Aide ($/m³) = vpâte * (\"&$B$318&\" / vr EXP \"&$B$319&\" + \"&$B$320&\" * vpâte - \"&$B$321&\")\"","v":"Aide ($/m³) = vpâte * (5,682 / vr EXP 0,3411 + 0,332 * vpâte - 0,586)"},null,"Référencée"]
["Aide ($/m³) = vpâte * (5,682 / vr0,3411 + 0,332 * vpâte - 0,586)",null,"Affichée"]

{"sheet":"Log","index":5,"n_rows":5,"n_cols":4,"rows_kept":5,"cut":false,"hidden":true,"merged":[]}
["Utilisateur","Date","OS","Excel"]
["Pouliot, Simon (BMMB)","2022-04-07T07:34:38","Windows (32-bit) NT 6.01","15.0"]
["St-Pierre, Stéphane (BMMB)","2022-07-05T09:27:08","Windows (64-bit) NT 10.00","16.0"]
["St-Pierre, Stéphane (BMMB)","2022-07-06T08:05:25","Windows (64-bit) NT 10.00","16.0"]
["St-Pierre, Stéphane (BMMB)","2022-10-04T13:06:25","Windows (64-bit) NT 10.00","16.0"]